Workbook

Sheet Preisliste
A1: Preisliste / Pricelist (Januar 2026)
B2: Top | C2: Zimmer | D2: Fläche | E2: Freifläche | F2: Miete 6 Monate | G2: Miete 5 Monate | H2: Miete 4 Monate | I2: Miete 3 Monate | J2: Miete 2 Monate
A4: 1. Stock | B4: 101 | C4: 1 | D4: 22.21 | E4: 0.00 | F4: =Hilfstabelle!B5 -> € 679.00 | G4: =F4+20 -> € 699.00 | H4: =G4+20 -> € 719.00 | I4: € 739.00 | J4: € 759.00
B5: 102 | C5: 1 | D5: 18.19 | E5: 0.00 | F5: =Hilfstabelle!B6 -> € 679.00 | G5: =F5+20 -> € 699.00 | H5: € 719.00 | I5: € 739.00 | J5: € 759.00
B6: 103 | C6: 1 | D6: 21.45 | E6: 0.00 | F6: =Hilfstabelle!B7 -> € 679.00 | G6: € 699.00 | H6: € 719.00 | I6: € 739.00 | J6: € 759.00
B7: 104 | C7: 1 | D7: 22.14 | E7: 0.00 | F7: =Hilfstabelle!B8 -> € 679.00 | G7: € 699.00 | H7: € 719.00 | I7: € 739.00 | J7: € 759.00
B8: 105 | C8: 1 | D8: 22.34 | E8: 0.00 | F8: =Hilfstabelle!B9 -> € 679.00 | G8: € 699.00 | H8: € 719.00 | I8: € 739.00 | J8: € 759.00
B9: 106 | C9: 1 | D9: 22.15 | E9: 0.00 | F9: =Hilfstabelle!B10 -> € 679.00 | G9: € 699.00 | H9: € 719.00 | I9: € 739.00 | J9: € 759.00
B10: 107 | C10: 1 | D10: 22.34 | E10: 0.00 | F10: =Hilfstabelle!B11 -> € 679.00 | G10: € 699.00 | H10: € 719.00 | I10: € 739.00 | J10: € 759.00
B11: 108 | C11: 1 | D11: 22.15 | E11: 0.00 | F11: =Hilfstabelle!B12 -> € 679.00 | G11: € 699.00 | H11: € 719.00 | I11: € 739.00 | J11: € 759.00
B12: 109 | C12: 1 | D12: 22.34 | E12: 0.00 | F12: =Hilfstabelle!B13 -> € 679.00 | G12: € 699.00 | H12: € 719.00 | I12: € 739.00 | J12: € 759.00
B13: 110 | C13: 1 | D13: 22.15 | E13: 0.00 | F13: =Hilfstabelle!B14 -> € 679.00 | G13: € 699.00 | H13: € 719.00 | I13: € 739.00 | J13: € 759.00
B14: 111 | C14: 1 | D14: 22.34 | E14: 0.00 | F14: =Hilfstabelle!B15 -> € 679.00 | G14: € 699.00 | H14: € 719.00 | I14: € 739.00 | J14: € 759.00
B15: 112 | C15: 1 | D15: 22.15 | E15: 0.00 | F15: =Hilfstabelle!B16 -> € 679.00 | G15: € 699.00 | H15: € 719.00 | I15: € 739.00 | J15: € 759.00
B16: 113 | C16: 1 | D16: 22.34 | E16: 0.00 | F16: =Hilfstabelle!B17 -> € 679.00 | G16: € 699.00 | H16: € 719.00 | I16: € 739.00 | J16: € 759.00
B17: 114 | C17: 1 | D17: 22.15 | E17: 0.00 | F17: =Hilfstabelle!B18 -> € 679.00 | G17: € 699.00 | H17: € 719.00 | I17: € 739.00 | J17: € 759.00
B18: 115 | C18: 1 | D18: 22.34 | E18: 0.00 | F18: =Hilfstabelle!B19 -> € 679.00 | G18: € 699.00 | H18: € 719.00 | I18: € 739.00 | J18: € 759.00
B19: 116 | C19: 1 | D19: 22.15 | E19: 0.00 | F19: =Hilfstabelle!B20 -> € 679.00 | G19: € 699.00 | H19: € 719.00 | I19: € 739.00 | J19: € 759.00
B20: 117 | C20: 1 | D20: 22.29 | E20: 0.00 | F20: =Hilfstabelle!B21 -> € 679.00 | G20: € 699.00 | H20: € 719.00 | I20: € 739.00 | J20: € 759.00
B21: 118 | C21: 2 | D21: 51.40 | E21: 0.00 | F21: =Hilfstabelle!B22 -> € 1,239.00 | G21: =F21+40 -> € 1,279.00 | H21: =G21+40 -> € 1,319.00 | I21: € 1,359.00 | J21: € 1,399.00
B22: 119 | C22: 1 | D22: 40.33 | E22: 0.00 | F22: =Hilfstabelle!B23 -> € 969.00 | G22: =F22+30 -> € 999.00 | H22: =G22+30 -> € 1,029.00 | I22: € 1,059.00 | J22: € 1,089.00
B23: 120 | C23: 1 | D23: 22.98 | E23: 0.00 | F23: =Hilfstabelle!B24 -> € 679.00 | G23: € 699.00 | H23: € 719.00 | I23: € 739.00 | J23: € 759.00
B24: 121 | C24: 1 | D24: 27.61 | E24: 15.92 | F24: =Hilfstabelle!B25 -> € 809.00 | G24: =F24+30 -> € 839.00 | H24: =G24+30 -> € 869.00 | I24: € 899.00 | J24: € 929.00
B25: 122 | C25: 1 | D25: 21.91 | E25: 6.10 | F25: =Hilfstabelle!B26 -> € 739.00 | G25: € 759.00 | H25: € 779.00 | I25: € 799.00 | J25: € 819.00
B26: 123 | C26: 1 | D26: 21.91 | E26: 6.10 | F26: =Hilfstabelle!B27 -> € 739.00 | G26: € 759.00 | H26: € 779.00 | I26: € 799.00 | J26: € 819.00
B27: 124 | C27: 1 | D27: 21.64 | E27: 6.10 | F27: =Hilfstabelle!B28 -> € 739.00 | G27: € 759.00 | H27: € 779.00 | I27: € 799.00 | J27: € 819.00
B28: 125 | C28: 1 | D28: 21.90 | E28: 6.10 | F28: =Hilfstabelle!B29 -> € 739.00 | G28: € 759.00 | H28: € 779.00 | I28: € 799.00 | J28: € 819.00
B29: 126 | C29: 1 | D29: 21.91 | E29: 6.10 | F29: =Hilfstabelle!B30 -> € 739.00 | G29: € 759.00 | H29: € 779.00 | I29: € 799.00 | J29: € 819.00
B30: 127 | C30: 1 | D30: 21.74 | E30: 6.10 | F30: =Hilfstabelle!B31 -> € 739.00 | G30: € 759.00 | H30: € 779.00 | I30: € 799.00 | J30: € 819.00
B31: 128 | C31: 1 | D31: 21.90 | E31: 6.10 | F31: =Hilfstabelle!B32 -> € 739.00 | G31: € 759.00 | H31: € 779.00 | I31: € 799.00 | J31: € 819.00
B32: 129 | C32: 1 | D32: 21.71 | E32: 6.10 | F32: =Hilfstabelle!B33 -> € 739.00 | G32: € 759.00 | H32: € 779.00 | I32: € 799.00 | J32: € 819.00
B33: 130 | C33: 1 | D33: 21.89 | E33: 6.10 | F33: =Hilfstabelle!B34 -> € 739.00 | G33: € 759.00 | H33: € 779.00 | I33: € 799.00 | J33: € 819.00
B34: 131 | C34: 1 | D34: 21.71 | E34: 6.10 | F34: =Hilfstabelle!B35 -> € 739.00 | G34: € 759.00 | H34: € 779.00 | I34: € 799.00 | J34: € 819.00
B35: 132 | C35: 2 + AR | D35: 46.21 | E35: 9.46 | F35: =Hilfstabelle!B36 -> € 1,199.00 | G35: =F35+40 -> € 1,239.00 | H35: =G35+40 -> € 1,279.00 | I35: € 1,319.00 | J35: € 1,359.00
B36: 133 | C36: 1 | D36: 21.72 | E36: 6.10 | F36: =Hilfstabelle!B37 -> € 739.00 | G36: € 759.00 | H36: € 779.00 | I36: € 799.00 | J36: € 819.00
B37: 134 | C37: 1 | D37: 21.92 | E37: 6.10 | F37: =Hilfstabelle!B38 -> € 739.00 | G37: € 759.00 | H37: € 779.00 | I37: € 799.00 | J37: € 819.00
B38: 135 | C38: 1 | D38: 21.72 | E38: 6.10 | F38: =Hilfstabelle!B39 -> € 739.00 | G38: € 759.00 | H38: € 779.00 | I38: € 799.00 | J38: € 819.00
B39: 136 | C39: 1 | D39: 21.64 | E39: 6.10 | F39: =Hilfstabelle!B40 -> € 739.00 | G39: € 759.00 | H39: € 779.00 | I39: € 799.00 | J39: € 819.00
B40: 137 | C40: 2 | D40: 33.66 | E40: 12.54 | F40: =Hilfstabelle!B41 -> € 1,059.00 | G40: =F40+30 -> € 1,089.00 | H40: =G40+30 -> € 1,119.00 | I40: € 1,149.00 | J40: € 1,179.00
A42: 2. Stock | B42: 201 | C42: 2 | D42: 33.62 | E42: 0.00 | F42: =Hilfstabelle!B43 -> € 989.00 | G42: =F42+30 -> € 1,019.00 | H42: =G42+30 -> € 1,049.00 | I42: € 1,079.00 | J42: € 1,109.00
B43: 202 | C43: 1 | D43: 22.75 | E43: 0.00 | F43: =Hilfstabelle!B44 -> € 689.00 | G43: =F43+20 -> € 709.00 | H43: € 729.00 | I43: € 749.00 | J43: € 769.00
B44: 203 | C44: 1 | D44: 23.83 | E44: 0.00 | F44: =Hilfstabelle!B45 -> € 689.00 | G44: € 709.00 | H44: € 729.00 | I44: € 749.00 | J44: € 769.00
B45: 204 | C45: 1 | D45: 23.72 | E45: 0.00 | F45: =Hilfstabelle!B46 -> € 689.00 | G45: € 709.00 | H45: € 729.00 | I45: € 749.00 | J45: € 769.00
B46: 205 | C46: 1 | D46: 23.91 | E46: 0.00 | F46: =Hilfstabelle!B47 -> € 689.00 | G46: € 709.00 | H46: € 729.00 | I46: € 749.00 | J46: € 769.00
B47: 206 | C47: 1 | D47: 23.72 | E47: 0.00 | F47: =Hilfstabelle!B48 -> € 689.00 | G47: € 709.00 | H47: € 729.00 | I47: € 749.00 | J47: € 769.00
B48: 207 | C48: 1 | D48: 23.91 | E48: 0.00 | F48: =Hilfstabelle!B49 -> € 689.00 | G48: € 709.00 | H48: € 729.00 | I48: € 749.00 | J48: € 769.00
B49: 208 | C49: 1 | D49: 23.72 | E49: 0.00 | F49: =Hilfstabelle!B50 -> € 689.00 | G49: € 709.00 | H49: € 729.00 | I49: € 749.00 | J49: € 769.00
B50: 209 | C50: 1 | D50: 23.91 | E50: 0.00 | F50: =Hilfstabelle!B51 -> € 689.00 | G50: € 709.00 | H50: € 729.00 | I50: € 749.00 | J50: € 769.00
B51: 210 | C51: 1 | D51: 23.72 | E51: 0.00 | F51: =Hilfstabelle!B52 -> € 689.00 | G51: € 709.00 | H51: € 729.00 | I51: € 749.00 | J51: € 769.00
B52: 211 | C52: 1 | D52: 23.91 | E52: 0.00 | F52: =Hilfstabelle!B53 -> € 689.00 | G52: € 709.00 | H52: € 729.00 | I52: € 749.00 | J52: € 769.00
B53: 212 | C53: 1 | D53: 23.72 | E53: 0.00 | F53: =Hilfstabelle!B54 -> € 689.00 | G53: € 709.00 | H53: € 729.00 | I53: € 749.00 | J53: € 769.00
B54: 213 | C54: 1 | D54: 23.91 | E54: 0.00 | F54: =Hilfstabelle!B55 -> € 689.00 | G54: € 709.00 | H54: € 729.00 | I54: € 749.00 | J54: € 769.00
B55: 214 | C55: 1 | D55: 23.72 | E55: 0.00 | F55: =Hilfstabelle!B56 -> € 689.00 | G55: € 709.00 | H55: € 729.00 | I55: € 749.00 | J55: € 769.00
B56: 215 | C56: 1 | D56: 23.91 | E56: 0.00 | F56: =Hilfstabelle!B57 -> € 689.00 | G56: € 709.00 | H56: € 729.00 | I56: € 749.00 | J56: € 769.00
B57: 216 | C57: 1 | D57: 23.26 | E57: 0.00 | F57: =Hilfstabelle!B58 -> € 689.00 | G57: € 709.00 | H57: € 729.00 | I57: € 749.00 | J57: € 769.00
B58: 217 | C58: 1 | D58: 22.53 | E58: 0.00 | F58: =Hilfstabelle!B59 -> € 689.00 | G58: € 709.00 | H58: € 729.00 | I58: € 749.00 | J58: € 769.00
B59: 218 | C59: 2 | D59: 51.40 | E59: 0.00 | F59: =Hilfstabelle!B60 -> € 1,239.00 | G59: =F59+40 -> € 1,279.00 | H59: =G59+40 -> € 1,319.00 | I59: € 1,359.00 | J59: € 1,399.00
B60: 219 | C60: 1 | D60: 40.33 | E60: 0.00 | F60: =Hilfstabelle!B61 -> € 969.00 | G60: =F60+30 -> € 999.00 | H60: =G60+30 -> € 1,029.00 | I60: € 1,059.00 | J60: € 1,089.00
B61: 220 | C61: 1 | D61: 21.81 | E61: 0.00 | F61: =Hilfstabelle!B62 -> € 689.00 | G61: =F61+20 -> € 709.00 | H61: € 729.00 | I61: € 749.00 | J61: € 769.00
B62: 221 | C62: 1 | D62: 33.70 | E62: 12.44 | F62: =Hilfstabelle!B63 -> € 889.00 | G62: =F62+30 -> € 919.00 | H62: =G62+30 -> € 949.00 | I62: € 979.00 | J62: € 1,009.00
B63: 222 | C63: 1 | D63: 23.48 | E63: 4.77 | F63: =Hilfstabelle!B64 -> € 739.00 | G63: =F63+20 -> € 759.00 | H63: € 779.00 | I63: € 799.00 | J63: € 819.00
B64: 223 | C64: 1 | D64: 23.48 | E64: 4.77 | F64: =Hilfstabelle!B65 -> € 739.00 | G64: € 759.00 | H64: € 779.00 | I64: € 799.00 | J64: € 819.00
B65: 224 | C65: 1 | D65: 23.21 | E65: 4.77 | F65: =Hilfstabelle!B66 -> € 739.00 | G65: € 759.00 | H65: € 779.00 | I65: € 799.00 | J65: € 819.00
B66: 225 | C66: 1 | D66: 23.52 | E66: 4.77 | F66: =Hilfstabelle!B67 -> € 739.00 | G66: € 759.00 | H66: € 779.00 | I66: € 799.00 | J66: € 819.00
B67: 226 | C67: 1 | D67: 23.46 | E67: 4.77 | F67: =Hilfstabelle!B68 -> € 739.00 | G67: € 759.00 | H67: € 779.00 | I67: € 799.00 | J67: € 819.00
B68: 227 | C68: 1 | D68: 23.31 | E68: 4.77 | F68: =Hilfstabelle!B69 -> € 739.00 | G68: € 759.00 | H68: € 779.00 | I68: € 799.00 | J68: € 819.00
B69: 228 | C69: 1 | D69: 23.44 | E69: 4.77 | F69: =Hilfstabelle!B70 -> € 739.00 | G69: € 759.00 | H69: € 779.00 | I69: € 799.00 | J69: € 819.00
B70: 229 | C70: 1 | D70: 23.31 | E70: 4.77 | F70: =Hilfstabelle!B71 -> € 739.00 | G70: € 759.00 | H70: € 779.00 | I70: € 799.00 | J70: € 819.00
B71: 230 | C71: 1 | D71: 23.44 | E71: 4.77 | F71: =Hilfstabelle!B72 -> € 739.00 | G71: € 759.00 | H71: € 779.00 | I71: € 799.00 | J71: € 819.00
B72: 231 | C72: 1 | D72: 23.28 | E72: 4.77 | F72: =Hilfstabelle!B73 -> € 739.00 | G72: € 759.00 | H72: € 779.00 | I72: € 799.00 | J72: € 819.00
B73: 232 | C73: 2 + AR | D73: 48.92 | E73: 7.39 | F73: =Hilfstabelle!B74 -> € 1,239.00 | G73: =F73+40 -> € 1,279.00 | H73: =G73+40 -> € 1,319.00 | I73: € 1,359.00 | J73: € 1,399.00
B74: 233 | C74: 1 | D74: 23.29 | E74: 4.77 | F74: =Hilfstabelle!B75 -> € 739.00 | G74: =F74+20 -> € 759.00 | H74: € 779.00 | I74: € 799.00 | J74: € 819.00
B75: 234 | C75: 1 | D75: 23.48 | E75: 4.77 | F75: =Hilfstabelle!B76 -> € 739.00 | G75: € 759.00 | H75: € 779.00 | I75: € 799.00 | J75: € 819.00
B76: 235 | C76: 1 | D76: 23.29 | E76: 4.77 | F76: =Hilfstabelle!B77 -> € 739.00 | G76: € 759.00 | H76: € 779.00 | I76: € 799.00 | J76: € 819.00
B77: 236 | C77: 1 | D77: 23.48 | E77: 3.34 | F77: =Hilfstabelle!B78 -> € 739.00 | G77: € 759.00 | H77: € 779.00 | I77: € 799.00 | J77: € 819.00
B78: 237 | C78: 3 | D78: 48.46 | E78: 9.80 | F78: =Hilfstabelle!B79 -> € 1,309.00 | G78: =F78+40 -> € 1,349.00 | H78: =G78+40 -> € 1,389.00 | I78: € 1,429.00 | J78: € 1,469.00
A80: 3. Stock | B80: 301 | C80: 2 | D80: 33.63 | E80: 0.00 | F80: =Hilfstabelle!B81 -> € 989.00 | G80: =F80+30 -> € 1,019.00 | H80: =G80+30 -> € 1,049.00 | I80: € 1,079.00 | J80: € 1,109.00
B81: 302 | C81: 1 | D81: 22.75 | E81: 0.00 | F81: =Hilfstabelle!B82 -> € 689.00 | G81: =F81+20 -> € 709.00 | H81: € 729.00 | I81: € 749.00 | J81: € 769.00
B82: 303 | C82: 1 | D82: 23.83 | E82: 0.00 | F82: =Hilfstabelle!B83 -> € 689.00 | G82: € 709.00 | H82: € 729.00 | I82: € 749.00 | J82: € 769.00
B83: 304 | C83: 1 | D83: 23.72 | E83: 0.00 | F83: =Hilfstabelle!B84 -> € 689.00 | G83: € 709.00 | H83: € 729.00 | I83: € 749.00 | J83: € 769.00
B84: 305 | C84: 1 | D84: 23.91 | E84: 0.00 | F84: =Hilfstabelle!B85 -> € 689.00 | G84: € 709.00 | H84: € 729.00 | I84: € 749.00 | J84: € 769.00
B85: 306 | C85: 1 | D85: 23.72 | E85: 0.00 | F85: =Hilfstabelle!B86 -> € 689.00 | G85: € 709.00 | H85: € 729.00 | I85: € 749.00 | J85: € 769.00
B86: 307 | C86: 1 | D86: 23.91 | E86: 0.00 | F86: =Hilfstabelle!B87 -> € 689.00 | G86: € 709.00 | H86: € 729.00 | I86: € 749.00 | J86: € 769.00
B87: 308 | C87: 1 | D87: 23.72 | E87: 0.00 | F87: =Hilfstabelle!B88 -> € 689.00 | G87: € 709.00 | H87: € 729.00 | I87: € 749.00 | J87: € 769.00
B88: 309 | C88: 1 | D88: 23.91 | E88: 0.00 | F88: =Hilfstabelle!B89 -> € 689.00 | G88: € 709.00 | H88: € 729.00 | I88: € 749.00 | J88: € 769.00
B89: 310 | C89: 1 | D89: 23.72 | E89: 0.00 | F89: =Hilfstabelle!B90 -> € 689.00 | G89: € 709.00 | H89: € 729.00 | I89: € 749.00 | J89: € 769.00
B90: 311 | C90: 1 | D90: 23.91 | E90: 0.00 | F90: =Hilfstabelle!B91 -> € 689.00 | G90: € 709.00 | H90: € 729.00 | I90: € 749.00 | J90: € 769.00
B91: 312 | C91: 1 | D91: 23.72 | E91: 0.00 | F91: =Hilfstabelle!B92 -> € 689.00 | G91: € 709.00 | H91: € 729.00 | I91: € 749.00 | J91: € 769.00
B92: 313 | C92: 1 | D92: 23.91 | E92: 0.00 | F92: =Hilfstabelle!B93 -> € 689.00 | G92: € 709.00 | H92: € 729.00 | I92: € 749.00 | J92: € 769.00
B93: 314 | C93: 1 | D93: 23.72 | E93: 0.00 | F93: =Hilfstabelle!B94 -> € 689.00 | G93: € 709.00 | H93: € 729.00 | I93: € 749.00 | J93: € 769.00
B94: 315 | C94: 1 | D94: 23.91 | E94: 0.00 | F94: =Hilfstabelle!B95 -> € 689.00 | G94: € 709.00 | H94: € 729.00 | I94: € 749.00 | J94: € 769.00
B95: 316 | C95: 1 | D95: 23.25 | E95: 0.00 | F95: =Hilfstabelle!B96 -> € 689.00 | G95: € 709.00 | H95: € 729.00 | I95: € 749.00 | J95: € 769.00
B96: 317 | C96: 1 | D96: 22.53 | E96: 0.00 | F96: =Hilfstabelle!B97 -> € 689.00 | G96: € 709.00 | H96: € 729.00 | I96: € 749.00 | J96: € 769.00
B97: 318 | C97: 2 | D97: 51.41 | E97: 0.00 | F97: =Hilfstabelle!B98 -> € 1,239.00 | G97: =F97+40 -> € 1,279.00 | H97: =G97+40 -> € 1,319.00 | I97: € 1,359.00 | J97: € 1,399.00
B98: 319 | C98: 1 | D98: 40.33 | E98: 0.00 | F98: =Hilfstabelle!B99 -> € 969.00 | G98: =F98+30 -> € 999.00 | H98: =G98+30 -> € 1,029.00 | I98: € 1,059.00 | J98: € 1,089.00
B99: 320 | C99: 1 | D99: 21.81 | E99: 0.00 | F99: =Hilfstabelle!B100 -> € 689.00 | G99: =F99+20 -> € 709.00 | H99: € 729.00 | I99: € 749.00 | J99: € 769.00
B100: 321 | C100: 1 | D100: 33.39 | E100: 12.44 | F100: =Hilfstabelle!B101 -> € 889.00 | G100: =F100+30 -> € 919.00 | H100: =G100+30 -> € 949.00 | I100: € 979.00 | J100: € 1,009.00
B101: 322 | C101: 1 | D101: 23.48 | E101: 4.77 | F101: =Hilfstabelle!B102 -> € 739.00 | G101: =F101+20 -> € 759.00 | H101: € 779.00 | I101: € 799.00 | J101: € 819.00
B102: 323 | C102: 1 | D102: 23.48 | E102: 4.77 | F102: =Hilfstabelle!B103 -> € 739.00 | G102: € 759.00 | H102: € 779.00 | I102: € 799.00 | J102: € 819.00
B103: 324 | C103: 1 | D103: 23.21 | E103: 4.77 | F103: =Hilfstabelle!B104 -> € 739.00 | G103: € 759.00 | H103: € 779.00 | I103: € 799.00 | J103: € 819.00
B104: 325 | C104: 1 | D104: 23.52 | E104: 4.77 | F104: =Hilfstabelle!B105 -> € 739.00 | G104: € 759.00 | H104: € 779.00 | I104: € 799.00 | J104: € 819.00
B105: 326 | C105: 1 | D105: 23.46 | E105: 4.77 | F105: =Hilfstabelle!B106 -> € 739.00 | G105: € 759.00 | H105: € 779.00 | I105: € 799.00 | J105: € 819.00
B106: 327 | C106: 1 | D106: 23.30 | E106: 4.77 | F106: =Hilfstabelle!B107 -> € 739.00 | G106: € 759.00 | H106: € 779.00 | I106: € 799.00 | J106: € 819.00
B107: 328 | C107: 1 | D107: 23.44 | E107: 4.77 | F107: =Hilfstabelle!B108 -> € 739.00 | G107: € 759.00 | H107: € 779.00 | I107: € 799.00 | J107: € 819.00
B108: 329 | C108: 1 | D108: 23.30 | E108: 4.77 | F108: =Hilfstabelle!B109 -> € 739.00 | G108: € 759.00 | H108: € 779.00 | I108: € 799.00 | J108: € 819.00
B109: 330 | C109: 1 | D109: 23.45 | E109: 4.77 | F109: =Hilfstabelle!B110 -> € 739.00 | G109: € 759.00 | H109: € 779.00 | I109: € 799.00 | J109: € 819.00
B110: 331 | C110: 1 | D110: 23.28 | E110: 4.77 | F110: =Hilfstabelle!B111 -> € 739.00 | G110: € 759.00 | H110: € 779.00 | I110: € 799.00 | J110: € 819.00
B111: 332 | C111: 2 + AR | D111: 48.86 | E111: 7.39 | F111: =Hilfstabelle!B112 -> € 1,239.00 | G111: =F111+40 -> € 1,279.00 | H111: =G111+40 -> € 1,319.00 | I111: € 1,359.00 | J111: € 1,399.00
B112: 333 | C112: 1 | D112: 23.29 | E112: 4.77 | F112: =Hilfstabelle!B113 -> € 739.00 | G112: =F112+20 -> € 759.00 | H112: € 779.00 | I112: € 799.00 | J112: € 819.00
B113: 334 | C113: 1 | D113: 23.48 | E113: 4.77 | F113: =Hilfstabelle!B114 -> € 739.00 | G113: € 759.00 | H113: € 779.00 | I113: € 799.00 | J113: € 819.00
B114: 335 | C114: 1 | D114: 23.29 | E114: 4.77 | F114: =Hilfstabelle!B115 -> € 739.00 | G114: € 759.00 | H114: € 779.00 | I114: € 799.00 | J114: € 819.00
B115: 336 | C115: 1 | D115: 23.48 | E115: 3.34 | F115: =Hilfstabelle!B116 -> € 739.00 | G115: € 759.00 | H115: € 779.00 | I115: € 799.00 | J115: € 819.00
B116: 337 | C116: 3 | D116: 48.47 | E116: 9.80 | F116: =Hilfstabelle!B117 -> € 1,309.00 | G116: =F116+40 -> € 1,349.00 | H116: =G116+40 -> € 1,389.00 | I116: € 1,429.00 | J116: € 1,469.00
A118: 4. Stock | B118: 401 | C118: 2 | D118: 33.63 | E118: 0.00 | F118: =Hilfstabelle!B119 -> € 989.00 | G118: =F118+30 -> € 1,019.00 | H118: =G118+30 -> € 1,049.00 | I118: € 1,079.00 | J118: € 1,109.00
B119: 402 | C119: 1 | D119: 22.75 | E119: 0.00 | F119: =Hilfstabelle!B120 -> € 719.00 | G119: =F119+20 -> € 739.00 | H119: € 759.00 | I119: € 779.00 | J119: € 799.00
B120: 403 | C120: 1 | D120: 23.83 | E120: 0.00 | F120: =Hilfstabelle!B121 -> € 719.00 | G120: € 739.00 | H120: € 759.00 | I120: € 779.00 | J120: € 799.00
B121: 404 | C121: 1 | D121: 23.72 | E121: 0.00 | F121: =Hilfstabelle!B122 -> € 719.00 | G121: € 739.00 | H121: € 759.00 | I121: € 779.00 | J121: € 799.00
B122: 405 | C122: 1 | D122: 23.91 | E122: 0.00 | F122: =Hilfstabelle!B123 -> € 719.00 | G122: € 739.00 | H122: € 759.00 | I122: € 779.00 | J122: € 799.00
B123: 406 | C123: 1 | D123: 23.72 | E123: 0.00 | F123: =Hilfstabelle!B124 -> € 719.00 | G123: € 739.00 | H123: € 759.00 | I123: € 779.00 | J123: € 799.00
B124: 407 | C124: 1 | D124: 23.91 | E124: 0.00 | F124: =Hilfstabelle!B125 -> € 719.00 | G124: € 739.00 | H124: € 759.00 | I124: € 779.00 | J124: € 799.00
B125: 408 | C125: 1 | D125: 23.72 | E125: 0.00 | F125: =Hilfstabelle!B126 -> € 719.00 | G125: € 739.00 | H125: € 759.00 | I125: € 779.00 | J125: € 799.00
B126: 409 | C126: 1 | D126: 23.91 | E126: 0.00 | F126: =Hilfstabelle!B127 -> € 719.00 | G126: € 739.00 | H126: € 759.00 | I126: € 779.00 | J126: € 799.00
B127: 410 | C127: 1 | D127: 23.72 | E127: 0.00 | F127: =Hilfstabelle!B128 -> € 719.00 | G127: € 739.00 | H127: € 759.00 | I127: € 779.00 | J127: € 799.00
B128: 411 | C128: 1 | D128: 23.91 | E128: 0.00 | F128: =Hilfstabelle!B129 -> € 719.00 | G128: € 739.00 | H128: € 759.00 | I128: € 779.00 | J128: € 799.00
B129: 412 | C129: 1 | D129: 23.72 | E129: 0.00 | F129: =Hilfstabelle!B130 -> € 719.00 | G129: € 739.00 | H129: € 759.00 | I129: € 779.00 | J129: € 799.00
B130: 413 | C130: 1 | D130: 23.91 | E130: 0.00 | F130: =Hilfstabelle!B131 -> € 719.00 | G130: € 739.00 | H130: € 759.00 | I130: € 779.00 | J130: € 799.00
B131: 414 | C131: 1 | D131: 23.72 | E131: 0.00 | F131: =Hilfstabelle!B132 -> € 719.00 | G131: € 739.00 | H131: € 759.00 | I131: € 779.00 | J131: € 799.00
B132: 415 | C132: 1 | D132: 23.91 | E132: 0.00 | F132: =Hilfstabelle!B133 -> € 719.00 | G132: € 739.00 | H132: € 759.00 | I132: € 779.00 | J132: € 799.00
B133: 416 | C133: 1 | D133: 23.25 | E133: 0.00 | F133: =Hilfstabelle!B134 -> € 719.00 | G133: € 739.00 | H133: € 759.00 | I133: € 779.00 | J133: € 799.00
B134: 417 | C134: 1 | D134: 22.53 | E134: 0.00 | F134: =Hilfstabelle!B135 -> € 719.00 | G134: € 739.00 | H134: € 759.00 | I134: € 779.00 | J134: € 799.00
B135: 418 | C135: 2 | D135: 51.40 | E135: 0.00 | F135: =Hilfstabelle!B136 -> € 1,239.00 | G135: =F135+40 -> € 1,279.00 | H135: =G135+40 -> € 1,319.00 | I135: € 1,359.00 | J135: € 1,399.00
B136: 419 | C136: 1 | D136: 40.33 | E136: 0.00 | F136: =Hilfstabelle!B137 -> € 969.00 | G136: =F136+30 -> € 999.00 | H136: =G136+30 -> € 1,029.00 | I136: € 1,059.00 | J136: € 1,089.00
B137: 420 | C137: 1 | D137: 21.81 | E137: 0.00 | F137: =Hilfstabelle!B138 -> € 719.00 | G137: =F137+20 -> € 739.00 | H137: € 759.00 | I137: € 779.00 | J137: € 799.00
B138: 421 | C138: 1 | D138: 33.39 | E138: 12.44 | F138: =Hilfstabelle!B139 -> € 889.00 | G138: =F138+30 -> € 919.00 | H138: =G138+30 -> € 949.00 | I138: € 979.00 | J138: € 1,009.00
B139: 422 | C139: 1 | D139: 23.48 | E139: 4.77 | F139: =Hilfstabelle!B140 -> € 759.00 | G139: =F139+20 -> € 779.00 | H139: € 799.00 | I139: € 819.00 | J139: € 839.00
B140: 423 | C140: 1 | D140: 23.48 | E140: 4.77 | F140: =Hilfstabelle!B141 -> € 759.00 | G140: € 779.00 | H140: € 799.00 | I140: € 819.00 | J140: € 839.00
B141: 424 | C141: 1 | D141: 23.21 | E141: 4.77 | F141: =Hilfstabelle!B142 -> € 759.00 | G141: € 779.00 | H141: € 799.00 | I141: € 819.00 | J141: € 839.00
B142: 425 | C142: 1 | D142: 23.47 | E142: 4.77 | F142: =Hilfstabelle!B143 -> € 759.00 | G142: € 779.00 | H142: € 799.00 | I142: € 819.00 | J142: € 839.00
B143: 426 | C143: 1 | D143: 23.45 | E143: 4.77 | F143: =Hilfstabelle!B144 -> € 759.00 | G143: € 779.00 | H143: € 799.00 | I143: € 819.00 | J143: € 839.00
B144: 427 | C144: 1 | D144: 23.29 | E144: 4.77 | F144: =Hilfstabelle!B145 -> € 759.00 | G144: € 779.00 | H144: € 799.00 | I144: € 819.00 | J144: € 839.00
B145: 428 | C145: 1 | D145: 23.45 | E145: 4.77 | F145: =Hilfstabelle!B146 -> € 759.00 | G145: € 779.00 | H145: € 799.00 | I145: € 819.00 | J145: € 839.00
B146: 429 | C146: 1 | D146: 23.27 | E146: 4.77 | F146: =Hilfstabelle!B147 -> € 759.00 | G146: € 779.00 | H146: € 799.00 | I146: € 819.00 | J146: € 839.00
B147: 430 | C147: 1 | D147: 23.45 | E147: 4.77 | F147: =Hilfstabelle!B148 -> € 759.00 | G147: € 779.00 | H147: € 799.00 | I147: € 819.00 | J147: € 839.00
B148: 431 | C148: 1 | D148: 23.28 | E148: 4.77 | F148: =Hilfstabelle!B149 -> € 759.00 | G148: € 779.00 | H148: € 799.00 | I148: € 819.00 | J148: € 839.00
B149: 432 | C149: 2 + AR | D149: 48.85 | E149: 7.39 | F149: =Hilfstabelle!B150 -> € 1,229.00 | G149: =F149+40 -> € 1,269.00 | H149: =G149+40 -> € 1,309.00 | I149: € 1,349.00 | J149: € 1,389.00
B150: 433 | C150: 1 | D150: 23.29 | E150: 4.77 | F150: =Hilfstabelle!B151 -> € 759.00 | G150: =F150+20 -> € 779.00 | H150: € 799.00 | I150: € 819.00 | J150: € 839.00
B151: 434 | C151: 1 | D151: 23.48 | E151: 4.77 | F151: =Hilfstabelle!B152 -> € 759.00 | G151: € 779.00 | H151: € 799.00 | I151: € 819.00 | J151: € 839.00
B152: 435 | C152: 1 | D152: 23.29 | E152: 4.77 | F152: =Hilfstabelle!B153 -> € 759.00 | G152: € 779.00 | H152: € 799.00 | I152: € 819.00 | J152: € 839.00
B153: 436 | C153: 1 | D153: 23.48 | E153: 3.34 | F153: =Hilfstabelle!B154 -> € 759.00 | G153: € 779.00 | H153: € 799.00 | I153: € 819.00 | J153: € 839.00
B154: 437 | C154: 3 | D154: 48.39 | E154: 9.80 | F154: =Hilfstabelle!B155 -> € 1,279.00 | G154: =F154+40 -> € 1,319.00 | H154: =G154+40 -> € 1,359.00 | I154: € 1,399.00 | J154: € 1,439.00
A156: 5. Stock | B156: 501 | C156: 2 | D156: 33.63 | E156: 0.00 | F156: =Hilfstabelle!B157 -> € 989.00 | G156: =F156+30 -> € 1,019.00 | H156: =G156+30 -> € 1,049.00 | I156: € 1,079.00 | J156: € 1,109.00
B157: 502 | C157: 1 | D157: 22.75 | E157: 0.00 | F157: =Hilfstabelle!B158 -> € 719.00 | G157: =F157+20 -> € 739.00 | H157: € 759.00 | I157: € 779.00 | J157: € 799.00
B158: 503 | C158: 1 | D158: 23.82 | E158: 0.00 | F158: =Hilfstabelle!B159 -> € 719.00 | G158: € 739.00 | H158: € 759.00 | I158: € 779.00 | J158: € 799.00
B159: 504 | C159: 1 | D159: 23.71 | E159: 0.00 | F159: =Hilfstabelle!B160 -> € 719.00 | G159: € 739.00 | H159: € 759.00 | I159: € 779.00 | J159: € 799.00
B160: 505 | C160: 1 | D160: 23.90 | E160: 0.00 | F160: =Hilfstabelle!B161 -> € 719.00 | G160: € 739.00 | H160: € 759.00 | I160: € 779.00 | J160: € 799.00
B161: 506 | C161: 1 | D161: 23.72 | E161: 0.00 | F161: =Hilfstabelle!B162 -> € 719.00 | G161: € 739.00 | H161: € 759.00 | I161: € 779.00 | J161: € 799.00
B162: 507 | C162: 1 | D162: 23.91 | E162: 0.00 | F162: =Hilfstabelle!B163 -> € 719.00 | G162: € 739.00 | H162: € 759.00 | I162: € 779.00 | J162: € 799.00
B163: 508 | C163: 1 | D163: 23.71 | E163: 0.00 | F163: =Hilfstabelle!B164 -> € 719.00 | G163: € 739.00 | H163: € 759.00 | I163: € 779.00 | J163: € 799.00
B164: 509 | C164: 1 | D164: 23.90 | E164: 0.00 | F164: =Hilfstabelle!B165 -> € 719.00 | G164: € 739.00 | H164: € 759.00 | I164: € 779.00 | J164: € 799.00
B165: 510 | C165: 1 | D165: 23.71 | E165: 0.00 | F165: =Hilfstabelle!B166 -> € 719.00 | G165: € 739.00 | H165: € 759.00 | I165: € 779.00 | J165: € 799.00
B166: 511 | C166: 1 | D166: 23.90 | E166: 0.00 | F166: =Hilfstabelle!B167 -> € 719.00 | G166: € 739.00 | H166: € 759.00 | I166: € 779.00 | J166: € 799.00
B167: 512 | C167: 1 | D167: 23.72 | E167: 0.00 | F167: =Hilfstabelle!B168 -> € 719.00 | G167: € 739.00 | H167: € 759.00 | I167: € 779.00 | J167: € 799.00
B168: 513 | C168: 1 | D168: 23.91 | E168: 0.00 | F168: =Hilfstabelle!B169 -> € 719.00 | G168: € 739.00 | H168: € 759.00 | I168: € 779.00 | J168: € 799.00
B169: 514 | C169: 1 | D169: 23.72 | E169: 0.00 | F169: =Hilfstabelle!B170 -> € 719.00 | G169: € 739.00 | H169: € 759.00 | I169: € 779.00 | J169: € 799.00
B170: 515 | C170: 1 | D170: 23.91 | E170: 0.00 | F170: =Hilfstabelle!B171 -> € 719.00 | G170: € 739.00 | H170: € 759.00 | I170: € 779.00 | J170: € 799.00
B171: 516 | C171: 1 | D171: 23.25 | E171: 0.00 | F171: =Hilfstabelle!B172 -> € 719.00 | G171: € 739.00 | H171: € 759.00 | I171: € 779.00 | J171: € 799.00
B172: 517 | C172: 1 | D172: 22.53 | E172: 0.00 | F172: =Hilfstabelle!B173 -> € 719.00 | G172: € 739.00 | H172: € 759.00 | I172: € 779.00 | J172: € 799.00
B173: 518 | C173: 2 | D173: 51.40 | E173: 0.00 | F173: =Hilfstabelle!B174 -> € 1,239.00 | G173: =F173+40 -> € 1,279.00 | H173: =G173+40 -> € 1,319.00 | I173: € 1,359.00 | J173: € 1,399.00
B174: 519 | C174: 1 | D174: 40.33 | E174: 0.00 | F174: =Hilfstabelle!B175 -> € 969.00 | G174: =F174+30 -> € 999.00 | H174: =G174+30 -> € 1,029.00 | I174: € 1,059.00 | J174: € 1,089.00
B175: 520 | C175: 3 | D175: 62.86 | E175: 12.44 | F175: =Hilfstabelle!B176 -> € 1,379.00 | G175: =F175+50 -> € 1,429.00 | H175: =G175+50 -> € 1,479.00 | I175: € 1,529.00 | J175: € 1,579.00
B176: 521 | C176: 2 + AR | D176: 48.30 | E176: 9.59 | F176: =Hilfstabelle!B177 -> € 1,259.00 | G176: =F176+40 -> € 1,299.00 | H176: =G176+40 -> € 1,339.00 | I176: € 1,379.00 | J176: € 1,419.00
B177: 522 | C177: 2 + AR | D177: 47.66 | E177: 9.59 | F177: =Hilfstabelle!B178 -> € 1,259.00 | G177: =F177+40 -> € 1,299.00 | H177: € 1,339.00 | I177: € 1,379.00 | J177: € 1,419.00
B178: 523 | C178: 2 + AR | D178: 48.16 | E178: 9.59 | F178: =Hilfstabelle!B179 -> € 1,259.00 | G178: =F178+40 -> € 1,299.00 | H178: € 1,339.00 | I178: € 1,379.00 | J178: € 1,419.00
B179: 524 | C179: 2 + AR | D179: 48.18 | E179: 9.59 | F179: =Hilfstabelle!B180 -> € 1,259.00 | G179: =F179+40 -> € 1,299.00 | H179: € 1,339.00 | I179: € 1,379.00 | J179: € 1,419.00
B180: 525 | C180: 2 + AR | D180: 48.18 | E180: 9.59 | F180: =Hilfstabelle!B181 -> € 1,259.00 | G180: =F180+40 -> € 1,299.00 | H180: € 1,339.00 | I180: € 1,379.00 | J180: € 1,419.00
B181: 526 | C181: 3 + 2x AR | D181: 74.22 | E181: 12.20 | F181: =Hilfstabelle!B182 -> € 1,479.00 | G181: =F181+50 -> € 1,529.00 | H181: =G181+50 -> € 1,579.00 | I181: € 1,629.00 | J181: € 1,679.00
B182: 527 | C182: 2 + AR | D182: 48.18 | E182: 9.58 | F182: =Hilfstabelle!B183 -> € 1,309.00 | G182: =F182+40 -> € 1,349.00 | H182: =G182+40 -> € 1,389.00 | I182: € 1,429.00 | J182: € 1,469.00
B183: 528 | C183: 4 + AR | D183: 73.23 | E183: 13.14 | F183: =Hilfstabelle!B184 -> € 1,539.00 | G183: =F183+50 -> € 1,589.00 | H183: =G183+50 -> € 1,639.00 | I183: € 1,689.00 | J183: € 1,739.00
A185: 6. Stock | B185: 601 | C185: 2 | D185: 33.63 | E185: 0.00 | F185: =Hilfstabelle!B186 -> € 989.00 | G185: =F185+30 -> € 1,019.00 | H185: =G185+30 -> € 1,049.00 | I185: € 1,079.00 | J185: € 1,109.00
B186: 602 | C186: 1 | D186: 22.75 | E186: 0.00 | F186: =Hilfstabelle!B187 -> € 719.00 | G186: =F186+20 -> € 739.00 | H186: € 759.00 | I186: € 779.00 | J186: € 799.00
B187: 603 | C187: 1 | D187: 23.83 | E187: 0.00 | F187: =Hilfstabelle!B188 -> € 719.00 | G187: € 739.00 | H187: € 759.00 | I187: € 779.00 | J187: € 799.00
B188: 604 | C188: 1 | D188: 23.72 | E188: 0.00 | F188: =Hilfstabelle!B189 -> € 719.00 | G188: € 739.00 | H188: € 759.00 | I188: € 779.00 | J188: € 799.00
B189: 605 | C189: 1 | D189: 23.91 | E189: 0.00 | F189: =Hilfstabelle!B190 -> € 719.00 | G189: € 739.00 | H189: € 759.00 | I189: € 779.00 | J189: € 799.00
B190: 606 | C190: 1 | D190: 23.72 | E190: 0.00 | F190: =Hilfstabelle!B191 -> € 719.00 | G190: € 739.00 | H190: € 759.00 | I190: € 779.00 | J190: € 799.00
B191: 607 | C191: 1 | D191: 23.91 | E191: 0.00 | F191: =Hilfstabelle!B192 -> € 719.00 | G191: € 739.00 | H191: € 759.00 | I191: € 779.00 | J191: € 799.00
B192: 608 | C192: 1 | D192: 23.72 | E192: 0.00 | F192: =Hilfstabelle!B193 -> € 719.00 | G192: € 739.00 | H192: € 759.00 | I192: € 779.00 | J192: € 799.00
B193: 609 | C193: 1 | D193: 23.91 | E193: 0.00 | F193: =Hilfstabelle!B194 -> € 719.00 | G193: € 739.00 | H193: € 759.00 | I193: € 779.00 | J193: € 799.00
B194: 610 | C194: 1 | D194: 23.72 | E194: 0.00 | F194: =Hilfstabelle!B195 -> € 719.00 | G194: € 739.00 | H194: € 759.00 | I194: € 779.00 | J194: € 799.00
B195: 611 | C195: 1 | D195: 23.91 | E195: 0.00 | F195: =Hilfstabelle!B196 -> € 719.00 | G195: € 739.00 | H195: € 759.00 | I195: € 779.00 | J195: € 799.00
B196: 612 | C196: 1 | D196: 23.72 | E196: 0.00 | F196: =Hilfstabelle!B197 -> € 719.00 | G196: € 739.00 | H196: € 759.00 | I196: € 779.00 | J196: € 799.00
B197: 613 | C197: 1 | D197: 23.91 | E197: 0.00 | F197: =Hilfstabelle!B198 -> € 719.00 | G197: € 739.00 | H197: € 759.00 | I197: € 779.00 | J197: € 799.00
B198: 614 | C198: 1 | D198: 23.72 | E198: 0.00 | F198: =Hilfstabelle!B199 -> € 719.00 | G198: € 739.00 | H198: € 759.00 | I198: € 779.00 | J198: € 799.00
B199: 615 | C199: 1 | D199: 23.91 | E199: 0.00 | F199: =Hilfstabelle!B200 -> € 719.00 | G199: € 739.00 | H199: € 759.00 | I199: € 779.00 | J199: € 799.00
B200: 616 | C200: 1 | D200: 23.25 | E200: 0.00 | F200: =Hilfstabelle!B201 -> € 719.00 | G200: € 739.00 | H200: € 759.00 | I200: € 779.00 | J200: € 799.00
B201: 617 | C201: 1 | D201: 22.53 | E201: 0.00 | F201: =Hilfstabelle!B202 -> € 719.00 | G201: € 739.00 | H201: € 759.00 | I201: € 779.00 | J201: € 799.00
B202: 618 | C202: 2 | D202: 51.40 | E202: 0.00 | F202: =Hilfstabelle!B203 -> € 1,249.00 | G202: =F202+40 -> € 1,289.00 | H202: =G202+40 -> € 1,329.00 | I202: € 1,369.00 | J202: € 1,409.00
B203: 619 | C203: 1 | D203: 40.33 | E203: 0.00 | F203: =Hilfstabelle!B204 -> € 969.00 | G203: =F203+30 -> € 999.00 | H203: =G203+30 -> € 1,029.00 | I203: € 1,059.00 | J203: € 1,089.00
B204: 620 | C204: 2 | D204: 42.05 | E204: 12.43 | F204: =Hilfstabelle!B205 -> € 1,029.00 | G204: =F204+30 -> € 1,059.00 | H204: € 1,089.00 | I204: € 1,119.00 | J204: € 1,149.00
B205: 621 | C205: 1 | D205: 27.74 | E205: 16.52 | F205: =Hilfstabelle!B206 -> € 819.00 | G205: =F205+30 -> € 849.00 | H205: € 879.00 | I205: € 909.00 | J205: € 939.00
B206: 622 | C206: 1 | D206: 27.44 | E206: 16.27 | F206: =Hilfstabelle!B207 -> € 819.00 | G206: =F206+30 -> € 849.00 | H206: € 879.00 | I206: € 909.00 | J206: € 939.00
... 7 more rows

Sheet Hilfstabelle
B2: Miete 6 Monate | C2: Miete 5 Monate | D2: Miete 4 Monate | E2: Miete 3 Monate | F2: Miete 2 Monate | H2: Basis 6 | J2: Fläche | K2: Zimmer | L2: Freifläche | W2: alte Basis | X2: Änderung | Y2: neue Basis | AD2: Mietanpassung Index
Z3: manuell zum | AA3: Kontrolle | AD3: Formel
Q4: Dif Altpre | R4: Dif Neup | Z4: Kopieren | AD4: "=AUFRUNDEN(H5*1,035;-1)-1"
A5: 101 | B5: € 679.00 | C5: =B5+20 -> € 699.00 | D5: =C5+20 -> € 719.00 | E5: € 739.00 | F5: € 759.00 | H5: € 629.00 | J5: 22.21 | K5: 1 | L5: 0.00 | M5: € 629.00 | N5: =M5*1.04 -> € 654.16 | O5: =ROUNDDOWN(N5/10,0)*10-1 -> € 649.00 | Q5: =O5-M5 -> € 20.00 | R5: =C5-B5 -> € 20.00 | T5: =IF(Q5=R5, "Preis passt", "Korrektur") -> Preis passt | W5: =B5 -> € 679.00 | X5: 20 | Y5: =W5+X5 -> € 699.00 | Z5: 679 | AA5: =IF(Y5=Z5,"richtig","FALSCH") -> FALSCH
A6: 102 | B6: € 679.00 | C6: =B6+20 -> € 699.00 | D6: € 719.00 | E6: € 739.00 | F6: € 759.00 | H6: € 629.00 | J6: 18.19 | K6: 1 | L6: 0.00 | M6: € 629.00 | N6: =M6*1.04 -> € 654.16 | O6: =ROUNDDOWN(N6/10,0)*10-1 -> € 649.00 | Q6: =O6-M6 -> € 20.00 | R6: =C6-B6 -> € 20.00 | T6: =IF(Q6=R6, "Preis passt", "Korrektur") -> Preis passt | W6: =B6 -> € 679.00 | X6: 20 | Y6: =W6+X6 -> € 699.00 | Z6: 679 | AA6: =IF(Y6=Z6,"richtig","FALSCH") -> FALSCH
A7: 103 | B7: € 679.00 | C7: € 699.00 | D7: € 719.00 | E7: € 739.00 | F7: € 759.00 | H7: € 629.00 | J7: 21.45 | K7: 1 | L7: 0.00 | M7: € 629.00 | N7: € 654.16 | O7: € 649.00 | Q7: € 20.00 | R7: € 20.00 | T7: Preis passt | W7: € 679.00 | X7: 20 | Y7: € 699.00 | Z7: 679 | AA7: FALSCH | AD7: nach Übertrag der manuell Kopie
A8: 104 | B8: € 679.00 | C8: € 699.00 | D8: € 719.00 | E8: € 739.00 | F8: € 759.00 | H8: € 629.00 | J8: 22.14 | K8: 1 | L8: 0.00 | M8: € 629.00 | N8: € 654.16 | O8: € 649.00 | Q8: € 20.00 | R8: € 20.00 | T8: Preis passt | W8: € 679.00 | X8: 20 | Y8: € 699.00 | Z8: 679 | AA8: FALSCH | AD8: soll Kontrolle Falsch bei
A9: 105 | B9: € 679.00 | C9: € 699.00 | D9: € 719.00 | E9: € 739.00 | F9: € 759.00 | H9: € 629.00 | J9: 22.34 | K9: 1 | L9: 0.00 | M9: € 629.00 | N9: € 654.16 | O9: € 649.00 | Q9: € 20.00 | R9: € 20.00 | T9: Preis passt | W9: € 679.00 | X9: 20 | Y9: € 699.00 | Z9: 679 | AA9: FALSCH | AD9: geänderten Werten sein
A10: 106 | B10: € 679.00 | C10: € 699.00 | D10: € 719.00 | E10: € 739.00 | F10: € 759.00 | H10: € 629.00 | J10: 22.15 | K10: 1 | L10: 0.00 | M10: € 629.00 | N10: € 654.16 | O10: € 649.00 | Q10: € 20.00 | R10: € 20.00 | T10: Preis passt | W10: € 679.00 | X10: 20 | Y10: € 699.00 | Z10: 679 | AA10: FALSCH
A11: 107 | B11: € 679.00 | C11: € 699.00 | D11: € 719.00 | E11: € 739.00 | F11: € 759.00 | H11: € 629.00 | J11: 22.34 | K11: 1 | L11: 0.00 | M11: € 629.00 | N11: € 654.16 | O11: € 649.00 | Q11: € 20.00 | R11: € 20.00 | T11: Preis passt | W11: € 679.00 | X11: 20 | Y11: € 699.00 | Z11: 679 | AA11: FALSCH
A12: 108 | B12: € 679.00 | C12: € 699.00 | D12: € 719.00 | E12: € 739.00 | F12: € 759.00 | H12: € 629.00 | J12: 22.15 | K12: 1 | L12: 0.00 | M12: € 629.00 | N12: € 654.16 | O12: € 649.00 | Q12: € 20.00 | R12: € 20.00 | T12: Preis passt | W12: € 679.00 | X12: 20 | Y12: € 699.00 | Z12: 679 | AA12: FALSCH
A13: 109 | B13: € 679.00 | C13: € 699.00 | D13: € 719.00 | E13: € 739.00 | F13: € 759.00 | H13: € 629.00 | J13: 22.34 | K13: 1 | L13: 0.00 | M13: € 629.00 | N13: € 654.16 | O13: € 649.00 | Q13: € 20.00 | R13: € 20.00 | T13: Preis passt | W13: € 679.00 | X13: 20 | Y13: € 699.00 | Z13: 679 | AA13: FALSCH
A14: 110 | B14: € 679.00 | C14: € 699.00 | D14: € 719.00 | E14: € 739.00 | F14: € 759.00 | H14: € 629.00 | J14: 22.15 | K14: 1 | L14: 0.00 | M14: € 629.00 | N14: € 654.16 | O14: € 649.00 | Q14: € 20.00 | R14: € 20.00 | T14: Preis passt | W14: € 679.00 | X14: 20 | Y14: € 699.00 | Z14: 679 | AA14: FALSCH
A15: 111 | B15: € 679.00 | C15: € 699.00 | D15: € 719.00 | E15: € 739.00 | F15: € 759.00 | H15: € 629.00 | J15: 22.34 | K15: 1 | L15: 0.00 | M15: € 629.00 | N15: € 654.16 | O15: € 649.00 | Q15: € 20.00 | R15: € 20.00 | T15: Preis passt | W15: € 679.00 | X15: 20 | Y15: € 699.00 | Z15: 679 | AA15: FALSCH
A16: 112 | B16: € 679.00 | C16: € 699.00 | D16: € 719.00 | E16: € 739.00 | F16: € 759.00 | H16: € 629.00 | J16: 22.15 | K16: 1 | L16: 0.00 | M16: € 629.00 | N16: € 654.16 | O16: € 649.00 | Q16: € 20.00 | R16: € 20.00 | T16: Preis passt | W16: € 679.00 | X16: 20 | Y16: € 699.00 | Z16: 679 | AA16: FALSCH
A17: 113 | B17: € 679.00 | C17: € 699.00 | D17: € 719.00 | E17: € 739.00 | F17: € 759.00 | H17: € 629.00 | J17: 22.34 | K17: 1 | L17: 0.00 | M17: € 629.00 | N17: € 654.16 | O17: € 649.00 | Q17: € 20.00 | R17: € 20.00 | T17: Preis passt | W17: € 679.00 | X17: 20 | Y17: € 699.00 | Z17: 679 | AA17: FALSCH
A18: 114 | B18: € 679.00 | C18: € 699.00 | D18: € 719.00 | E18: € 739.00 | F18: € 759.00 | H18: € 629.00 | J18: 22.15 | K18: 1 | L18: 0.00 | M18: € 629.00 | N18: € 654.16 | O18: € 649.00 | Q18: € 20.00 | R18: € 20.00 | T18: Preis passt | W18: € 679.00 | X18: 20 | Y18: € 699.00 | Z18: 679 | AA18: FALSCH
A19: 115 | B19: € 679.00 | C19: € 699.00 | D19: € 719.00 | E19: € 739.00 | F19: € 759.00 | H19: € 629.00 | J19: 22.34 | K19: 1 | L19: 0.00 | M19: € 629.00 | N19: € 654.16 | O19: € 649.00 | Q19: € 20.00 | R19: € 20.00 | T19: Preis passt | W19: € 679.00 | X19: 20 | Y19: € 699.00 | Z19: 679 | AA19: FALSCH
A20: 116 | B20: € 679.00 | C20: € 699.00 | D20: € 719.00 | E20: € 739.00 | F20: € 759.00 | H20: € 629.00 | J20: 22.15 | K20: 1 | L20: 0.00 | M20: € 629.00 | N20: € 654.16 | O20: € 649.00 | Q20: € 20.00 | R20: € 20.00 | T20: Preis passt | W20: € 679.00 | X20: 20 | Y20: € 699.00 | Z20: 679 | AA20: FALSCH
A21: 117 | B21: € 679.00 | C21: € 699.00 | D21: =C21+20 -> € 719.00 | E21: =D21+20 -> € 739.00 | F21: =E21+20 -> € 759.00 | H21: € 629.00 | J21: 22.29 | K21: 1 | L21: 0.00 | M21: € 629.00 | N21: € 654.16 | O21: € 649.00 | Q21: € 20.00 | R21: € 20.00 | T21: Preis passt | W21: € 679.00 | X21: 20 | Y21: € 699.00 | Z21: 679 | AA21: FALSCH
A22: 118 | B22: € 1,239.00 | C22: =B22+40 -> € 1,279.00 | D22: =C22+40 -> € 1,319.00 | E22: € 1,359.00 | F22: € 1,399.00 | H22: € 1,099.00 | J22: 51.40 | K22: 2 | L22: 0.00 | M22: € 1,099.00 | N22: € 1,142.96 | O22: =ROUNDDOWN(N22/10,0)*10-1 -> € 1,139.00 | Q22: € 40.00 | R22: € 40.00 | T22: Preis passt | W22: € 1,239.00 | X22: 100 | Y22: € 1,339.00 | Z22: 1239 | AA22: FALSCH
A23: 119 | B23: € 969.00 | C23: =B23+30 -> € 999.00 | D23: =C23+30 -> € 1,029.00 | E23: € 1,059.00 | F23: € 1,089.00 | H23: € 929.00 | J23: 40.33 | K23: 1 | L23: 0.00 | M23: € 929.00 | N23: € 966.16 | O23: =ROUNDDOWN(N23/10,0)*10-1 -> € 959.00 | Q23: € 30.00 | R23: € 30.00 | T23: Preis passt | W23: € 969.00 | X23: 0 | Y23: € 969.00 | Z23: 969 | AA23: richtig
A24: 120 | B24: € 679.00 | C24: € 699.00 | D24: =C24+20 -> € 719.00 | E24: =D24+20 -> € 739.00 | F24: =E24+20 -> € 759.00 | H24: € 629.00 | J24: 22.98 | K24: 1 | L24: 0.00 | M24: € 629.00 | N24: € 654.16 | O24: =ROUNDDOWN(N24/10,0)*10-1 -> € 649.00 | Q24: € 20.00 | R24: € 20.00 | T24: Preis passt | W24: € 679.00 | X24: 20 | Y24: € 699.00 | Z24: 679 | AA24: FALSCH
A25: 121 | B25: € 809.00 | C25: =B25+30 -> € 839.00 | D25: =C25+30 -> € 869.00 | E25: € 899.00 | F25: € 929.00 | H25: € 779.00 | J25: 27.61 | K25: 1 | L25: 15.92 | M25: € 779.00 | N25: € 810.16 | O25: =ROUNDDOWN(N25/10,0)*10-1 -> € 809.00 | Q25: € 30.00 | R25: € 30.00 | T25: Preis passt | W25: € 809.00 | X25: 0 | Y25: € 809.00 | Z25: 809 | AA25: richtig
A26: 122 | B26: € 739.00 | C26: € 759.00 | D26: =C26+20 -> € 779.00 | E26: =D26+20 -> € 799.00 | F26: =E26+20 -> € 819.00 | H26: € 689.00 | J26: 21.91 | K26: 1 | L26: 6.10 | M26: € 689.00 | N26: € 716.56 | O26: =ROUNDDOWN(N26/10,0)*10-1 -> € 709.00 | Q26: € 20.00 | R26: € 20.00 | T26: Preis passt | W26: € 739.00 | X26: 20 | Y26: € 759.00 | Z26: 739 | AA26: FALSCH
A27: 123 | B27: € 739.00 | C27: € 759.00 | D27: € 779.00 | E27: € 799.00 | F27: € 819.00 | H27: € 689.00 | J27: 21.91 | K27: 1 | L27: 6.10 | M27: € 689.00 | N27: € 716.56 | O27: € 709.00 | Q27: € 20.00 | R27: € 20.00 | T27: Preis passt | W27: € 739.00 | X27: 20 | Y27: € 759.00 | Z27: 739 | AA27: FALSCH
A28: 124 | B28: € 739.00 | C28: € 759.00 | D28: € 779.00 | E28: € 799.00 | F28: € 819.00 | H28: € 689.00 | J28: 21.64 | K28: 1 | L28: 6.10 | M28: € 689.00 | N28: € 716.56 | O28: € 709.00 | Q28: € 20.00 | R28: € 20.00 | T28: Preis passt | W28: € 739.00 | X28: 20 | Y28: € 759.00 | Z28: 739 | AA28: FALSCH
A29: 125 | B29: € 739.00 | C29: € 759.00 | D29: € 779.00 | E29: € 799.00 | F29: € 819.00 | H29: € 689.00 | J29: 21.90 | K29: 1 | L29: 6.10 | M29: € 689.00 | N29: € 716.56 | O29: € 709.00 | Q29: € 20.00 | R29: € 20.00 | T29: Preis passt | W29: € 739.00 | X29: 20 | Y29: € 759.00 | Z29: 739 | AA29: FALSCH
A30: 126 | B30: € 739.00 | C30: € 759.00 | D30: € 779.00 | E30: € 799.00 | F30: € 819.00 | H30: € 689.00 | J30: 21.91 | K30: 1 | L30: 6.10 | M30: € 689.00 | N30: € 716.56 | O30: € 709.00 | Q30: € 20.00 | R30: € 20.00 | T30: Preis passt | W30: € 739.00 | X30: 20 | Y30: € 759.00 | Z30: 739 | AA30: FALSCH
A31: 127 | B31: € 739.00 | C31: € 759.00 | D31: € 779.00 | E31: € 799.00 | F31: € 819.00 | H31: € 689.00 | J31: 21.74 | K31: 1 | L31: 6.10 | M31: € 689.00 | N31: € 716.56 | O31: € 709.00 | Q31: € 20.00 | R31: € 20.00 | T31: Preis passt | W31: € 739.00 | X31: 20 | Y31: € 759.00 | Z31: 739 | AA31: FALSCH
A32: 128 | B32: € 739.00 | C32: € 759.00 | D32: € 779.00 | E32: € 799.00 | F32: € 819.00 | H32: € 689.00 | J32: 21.90 | K32: 1 | L32: 6.10 | M32: € 689.00 | N32: € 716.56 | O32: € 709.00 | Q32: € 20.00 | R32: € 20.00 | T32: Preis passt | W32: € 739.00 | X32: 20 | Y32: € 759.00 | Z32: 739 | AA32: FALSCH
A33: 129 | B33: € 739.00 | C33: € 759.00 | D33: € 779.00 | E33: € 799.00 | F33: € 819.00 | H33: € 689.00 | J33: 21.71 | K33: 1 | L33: 6.10 | M33: € 689.00 | N33: € 716.56 | O33: € 709.00 | Q33: € 20.00 | R33: € 20.00 | T33: Preis passt | W33: € 739.00 | X33: 20 | Y33: € 759.00 | Z33: 739 | AA33: FALSCH
A34: 130 | B34: € 739.00 | C34: € 759.00 | D34: € 779.00 | E34: € 799.00 | F34: € 819.00 | H34: € 689.00 | J34: 21.89 | K34: 1 | L34: 6.10 | M34: € 689.00 | N34: € 716.56 | O34: € 709.00 | Q34: € 20.00 | R34: € 20.00 | T34: Preis passt | W34: € 739.00 | X34: 20 | Y34: € 759.00 | Z34: 739 | AA34: FALSCH
A35: 131 | B35: € 739.00 | C35: € 759.00 | D35: € 779.00 | E35: € 799.00 | F35: € 819.00 | H35: € 689.00 | J35: 21.71 | K35: 1 | L35: 6.10 | M35: € 689.00 | N35: € 716.56 | O35: € 709.00 | Q35: € 20.00 | R35: € 20.00 | T35: Preis passt | W35: € 739.00 | X35: 20 | Y35: € 759.00 | Z35: 739 | AA35: FALSCH
A36: 132 | B36: € 1,199.00 | C36: =B36+40 -> € 1,239.00 | D36: =C36+40 -> € 1,279.00 | E36: € 1,319.00 | F36: € 1,359.00 | H36: € 1,159.00 | J36: 46.21 | K36: 2 + AR | L36: 9.46 | M36: € 1,159.00 | N36: € 1,205.36 | O36: € 1,199.00 | Q36: € 40.00 | R36: € 40.00 | T36: Preis passt | W36: € 1,199.00 | X36: 0 | Y36: € 1,199.00 | Z36: 1199 | AA36: richtig
A37: 133 | B37: € 739.00 | C37: € 759.00 | D37: =C37+20 -> € 779.00 | E37: =D37+20 -> € 799.00 | F37: =E37+20 -> € 819.00 | H37: € 689.00 | J37: 21.72 | K37: 1 | L37: 6.10 | M37: € 689.00 | N37: € 716.56 | O37: € 709.00 | Q37: € 20.00 | R37: € 20.00 | T37: Preis passt | W37: € 739.00 | X37: 20 | Y37: € 759.00 | Z37: 739 | AA37: FALSCH
A38: 134 | B38: € 739.00 | C38: € 759.00 | D38: € 779.00 | E38: € 799.00 | F38: € 819.00 | H38: € 689.00 | J38: 21.92 | K38: 1 | L38: 6.10 | M38: € 689.00 | N38: € 716.56 | O38: € 709.00 | Q38: € 20.00 | R38: € 20.00 | T38: Preis passt | W38: € 739.00 | X38: 20 | Y38: € 759.00 | Z38: 739 | AA38: FALSCH
A39: 135 | B39: € 739.00 | C39: € 759.00 | D39: € 779.00 | E39: € 799.00 | F39: € 819.00 | H39: € 689.00 | J39: 21.72 | K39: 1 | L39: 6.10 | M39: € 689.00 | N39: € 716.56 | O39: € 709.00 | Q39: € 20.00 | R39: € 20.00 | T39: Preis passt | W39: € 739.00 | X39: 20 | Y39: € 759.00 | Z39: 739 | AA39: FALSCH
A40: 136 | B40: € 739.00 | C40: € 759.00 | D40: € 779.00 | E40: € 799.00 | F40: € 819.00 | H40: € 689.00 | J40: 21.64 | K40: 1 | L40: 6.10 | M40: € 689.00 | N40: € 716.56 | O40: € 709.00 | Q40: € 20.00 | R40: € 20.00 | T40: Preis passt | W40: € 739.00 | X40: 20 | Y40: € 759.00 | Z40: 739 | AA40: FALSCH
A41: 137 | B41: € 1,059.00 | C41: =B41+30 -> € 1,089.00 | D41: =C41+30 -> € 1,119.00 | E41: € 1,149.00 | F41: € 1,179.00 | H41: € 1,019.00 | J41: 33.66 | K41: 2 | L41: 12.54 | M41: € 1,019.00 | N41: € 1,059.76 | O41: € 1,049.00 | Q41: € 30.00 | R41: € 30.00 | T41: Preis passt | W41: € 1,059.00 | X41: 0 | Y41: € 1,059.00 | Z41: 1059 | AA41: richtig
N42: € 0.00 | Q42: € 0.00 | R42: € 0.00 | T42: Preis passt | W42: € 0.00 | Y42: € 0.00 | AA42: richtig
A43: 201 | B43: € 989.00 | C43: =B43+30 -> € 1,019.00 | D43: =C43+30 -> € 1,049.00 | E43: € 1,079.00 | F43: € 1,109.00 | H43: € 949.00 | J43: 33.62 | K43: 2 | L43: 0.00 | M43: € 949.00 | N43: € 986.96 | O43: =ROUNDDOWN(N43/10,0)*10-1 -> € 979.00 | Q43: € 30.00 | R43: € 30.00 | T43: Preis passt | W43: € 989.00 | X43: 0 | Y43: € 989.00 | Z43: 989 | AA43: richtig
A44: 202 | B44: € 689.00 | C44: =B44+20 -> € 709.00 | D44: =C44+20 -> € 729.00 | E44: =D44+20 -> € 749.00 | F44: =E44+20 -> € 769.00 | H44: € 639.00 | J44: 22.75 | K44: 1 | L44: 0.00 | M44: € 639.00 | N44: € 664.56 | O44: =ROUNDDOWN(N44/10,0)*10-1 -> € 659.00 | Q44: € 20.00 | R44: € 20.00 | T44: Preis passt | W44: € 689.00 | X44: 20 | Y44: € 709.00 | Z44: 689 | AA44: FALSCH
A45: 203 | B45: € 689.00 | C45: =B45+20 -> € 709.00 | D45: € 729.00 | E45: € 749.00 | F45: € 769.00 | H45: € 639.00 | J45: 23.83 | K45: 1 | L45: 0.00 | M45: € 639.00 | N45: € 664.56 | O45: € 659.00 | Q45: € 20.00 | R45: € 20.00 | T45: Preis passt | W45: € 689.00 | X45: 20 | Y45: € 709.00 | Z45: 689 | AA45: FALSCH
A46: 204 | B46: € 689.00 | C46: =B46+20 -> € 709.00 | D46: € 729.00 | E46: € 749.00 | F46: € 769.00 | H46: € 639.00 | J46: 23.72 | K46: 1 | L46: 0.00 | M46: € 639.00 | N46: € 664.56 | O46: € 659.00 | Q46: € 20.00 | R46: € 20.00 | T46: Preis passt | W46: € 689.00 | X46: 20 | Y46: € 709.00 | Z46: 689 | AA46: FALSCH
A47: 205 | B47: € 689.00 | C47: =B47+20 -> € 709.00 | D47: € 729.00 | E47: € 749.00 | F47: € 769.00 | H47: € 639.00 | J47: 23.91 | K47: 1 | L47: 0.00 | M47: € 639.00 | N47: € 664.56 | O47: € 659.00 | Q47: € 20.00 | R47: € 20.00 | T47: Preis passt | W47: € 689.00 | X47: 20 | Y47: € 709.00 | Z47: 689 | AA47: FALSCH
A48: 206 | B48: € 689.00 | C48: =B48+20 -> € 709.00 | D48: € 729.00 | E48: € 749.00 | F48: € 769.00 | H48: € 639.00 | J48: 23.72 | K48: 1 | L48: 0.00 | M48: € 639.00 | N48: € 664.56 | O48: € 659.00 | Q48: € 20.00 | R48: € 20.00 | T48: Preis passt | W48: € 689.00 | X48: 20 | Y48: € 709.00 | Z48: 689 | AA48: FALSCH
A49: 207 | B49: € 689.00 | C49: =B49+20 -> € 709.00 | D49: € 729.00 | E49: € 749.00 | F49: € 769.00 | H49: € 639.00 | J49: 23.91 | K49: 1 | L49: 0.00 | M49: € 639.00 | N49: € 664.56 | O49: € 659.00 | Q49: € 20.00 | R49: € 20.00 | T49: Preis passt | W49: € 689.00 | X49: 20 | Y49: € 709.00 | Z49: 689 | AA49: FALSCH
A50: 208 | B50: € 689.00 | C50: =B50+20 -> € 709.00 | D50: € 729.00 | E50: € 749.00 | F50: € 769.00 | H50: € 639.00 | J50: 23.72 | K50: 1 | L50: 0.00 | M50: € 639.00 | N50: € 664.56 | O50: € 659.00 | Q50: € 20.00 | R50: € 20.00 | T50: Preis passt | W50: € 689.00 | X50: 20 | Y50: € 709.00 | Z50: 689 | AA50: FALSCH
A51: 209 | B51: € 689.00 | C51: =B51+20 -> € 709.00 | D51: € 729.00 | E51: € 749.00 | F51: € 769.00 | H51: € 639.00 | J51: 23.91 | K51: 1 | L51: 0.00 | M51: € 639.00 | N51: € 664.56 | O51: € 659.00 | Q51: € 20.00 | R51: € 20.00 | T51: Preis passt | W51: € 689.00 | X51: 20 | Y51: € 709.00 | Z51: 689 | AA51: FALSCH
A52: 210 | B52: € 689.00 | C52: =B52+20 -> € 709.00 | D52: € 729.00 | E52: € 749.00 | F52: € 769.00 | H52: € 639.00 | J52: 23.72 | K52: 1 | L52: 0.00 | M52: € 639.00 | N52: € 664.56 | O52: € 659.00 | Q52: € 20.00 | R52: € 20.00 | T52: Preis passt | W52: € 689.00 | X52: 20 | Y52: € 709.00 | Z52: 689 | AA52: FALSCH
A53: 211 | B53: € 689.00 | C53: =B53+20 -> € 709.00 | D53: € 729.00 | E53: € 749.00 | F53: € 769.00 | H53: € 639.00 | J53: 23.91 | K53: 1 | L53: 0.00 | M53: € 639.00 | N53: € 664.56 | O53: € 659.00 | Q53: € 20.00 | R53: € 20.00 | T53: Preis passt | W53: € 689.00 | X53: 20 | Y53: € 709.00 | Z53: 689 | AA53: FALSCH
A54: 212 | B54: € 689.00 | C54: =B54+20 -> € 709.00 | D54: € 729.00 | E54: € 749.00 | F54: € 769.00 | H54: € 639.00 | J54: 23.72 | K54: 1 | L54: 0.00 | M54: € 639.00 | N54: € 664.56 | O54: € 659.00 | Q54: € 20.00 | R54: € 20.00 | T54: Preis passt | W54: € 689.00 | X54: 20 | Y54: € 709.00 | Z54: 689 | AA54: FALSCH
A55: 213 | B55: € 689.00 | C55: =B55+20 -> € 709.00 | D55: € 729.00 | E55: € 749.00 | F55: € 769.00 | H55: € 639.00 | J55: 23.91 | K55: 1 | L55: 0.00 | M55: € 639.00 | N55: € 664.56 | O55: € 659.00 | Q55: € 20.00 | R55: € 20.00 | T55: Preis passt | W55: € 689.00 | X55: 20 | Y55: € 709.00 | Z55: 689 | AA55: FALSCH
A56: 214 | B56: € 689.00 | C56: =B56+20 -> € 709.00 | D56: € 729.00 | E56: € 749.00 | F56: € 769.00 | H56: € 639.00 | J56: 23.72 | K56: 1 | L56: 0.00 | M56: € 639.00 | N56: € 664.56 | O56: € 659.00 | Q56: € 20.00 | R56: € 20.00 | T56: Preis passt | W56: € 689.00 | X56: 20 | Y56: € 709.00 | Z56: 689 | AA56: FALSCH
A57: 215 | B57: € 689.00 | C57: =B57+20 -> € 709.00 | D57: € 729.00 | E57: € 749.00 | F57: € 769.00 | H57: € 639.00 | J57: 23.91 | K57: 1 | L57: 0.00 | M57: € 639.00 | N57: € 664.56 | O57: € 659.00 | Q57: € 20.00 | R57: € 20.00 | T57: Preis passt | W57: € 689.00 | X57: 20 | Y57: € 709.00 | Z57: 689 | AA57: FALSCH
A58: 216 | B58: € 689.00 | C58: =B58+20 -> € 709.00 | D58: € 729.00 | E58: € 749.00 | F58: € 769.00 | H58: € 639.00 | J58: 23.26 | K58: 1 | L58: 0.00 | M58: € 639.00 | N58: € 664.56 | O58: € 659.00 | Q58: € 20.00 | R58: € 20.00 | T58: Preis passt | W58: € 689.00 | X58: 20 | Y58: € 709.00 | Z58: 689 | AA58: FALSCH
A59: 217 | B59: € 689.00 | C59: =B59+20 -> € 709.00 | D59: € 729.00 | E59: € 749.00 | F59: € 769.00 | H59: € 639.00 | J59: 22.53 | K59: 1 | L59: 0.00 | M59: € 639.00 | N59: € 664.56 | O59: € 659.00 | Q59: € 20.00 | R59: € 20.00 | T59: Preis passt | W59: € 689.00 | X59: 20 | Y59: € 709.00 | Z59: 689 | AA59: FALSCH
A60: 218 | B60: € 1,239.00 | C60: =B60+40 -> € 1,279.00 | D60: =C60+40 -> € 1,319.00 | E60: € 1,359.00 | F60: € 1,399.00 | H60: € 1,099.00 | J60: 51.40 | K60: 2 | L60: 0.00 | M60: € 1,099.00 | N60: € 1,142.96 | O60: =ROUNDDOWN(N60/10,0)*10-1 -> € 1,139.00 | Q60: € 40.00 | R60: € 40.00 | T60: Preis passt | W60: € 1,239.00 | X60: 100 | Y60: € 1,339.00 | Z60: 1239 | AA60: FALSCH
A61: 219 | B61: € 969.00 | C61: =B61+30 -> € 999.00 | D61: =C61+30 -> € 1,029.00 | E61: € 1,059.00 | F61: € 1,089.00 | H61: € 929.00 | J61: 40.33 | K61: 1 | L61: 0.00 | M61: € 929.00 | N61: € 966.16 | O61: =ROUNDDOWN(N61/10,0)*10-1 -> € 959.00 | Q61: € 30.00 | R61: € 30.00 | T61: Preis passt | W61: € 969.00 | X61: 0 | Y61: € 969.00 | Z61: 969 | AA61: richtig
A62: 220 | B62: € 689.00 | C62: =B62+20 -> € 709.00 | D62: =C62+20 -> € 729.00 | E62: =D62+20 -> € 749.00 | F62: =E62+20 -> € 769.00 | H62: € 639.00 | J62: 21.81 | K62: 1 | L62: 0.00 | M62: € 639.00 | N62: € 664.56 | O62: =ROUNDDOWN(N62/10,0)*10-1 -> € 659.00 | Q62: € 20.00 | R62: € 20.00 | T62: Preis passt | W62: € 689.00 | X62: 20 | Y62: € 709.00 | Z62: 689 | AA62: FALSCH
A63: 221 | B63: € 889.00 | C63: =B63+30 -> € 919.00 | D63: =C63+30 -> € 949.00 | E63: € 979.00 | F63: € 1,009.00 | H63: € 859.00 | J63: 33.70 | K63: 1 | L63: 12.44 | M63: € 859.00 | N63: € 893.36 | O63: =ROUNDDOWN(N63/10,0)*10-1 -> € 889.00 | Q63: € 30.00 | R63: € 30.00 | T63: Preis passt | W63: € 889.00 | X63: 0 | Y63: € 889.00 | Z63: 889 | AA63: richtig
A64: 222 | B64: € 739.00 | C64: =B64+20 -> € 759.00 | D64: =C64+20 -> € 779.00 | E64: =D64+20 -> € 799.00 | F64: =E64+20 -> € 819.00 | H64: € 689.00 | J64: 23.48 | K64: 1 | L64: 4.77 | M64: € 689.00 | N64: € 716.56 | O64: =ROUNDDOWN(N64/10,0)*10-1 -> € 709.00 | Q64: € 20.00 | R64: € 20.00 | T64: Preis passt | W64: € 739.00 | X64: 20 | Y64: € 759.00 | Z64: 739 | AA64: FALSCH
A65: 223 | B65: € 739.00 | C65: =B65+20 -> € 759.00 | D65: € 779.00 | E65: € 799.00 | F65: € 819.00 | H65: € 689.00 | J65: 23.48 | K65: 1 | L65: 4.77 | M65: € 689.00 | N65: € 716.56 | O65: € 709.00 | Q65: € 20.00 | R65: € 20.00 | T65: Preis passt | W65: € 739.00 | X65: 20 | Y65: € 759.00 | Z65: 739 | AA65: FALSCH
A66: 224 | B66: € 739.00 | C66: =B66+20 -> € 759.00 | D66: € 779.00 | E66: € 799.00 | F66: € 819.00 | H66: € 689.00 | J66: 23.21 | K66: 1 | L66: 4.77 | M66: € 689.00 | N66: € 716.56 | O66: € 709.00 | Q66: € 20.00 | R66: € 20.00 | T66: Preis passt | W66: € 739.00 | X66: 20 | Y66: € 759.00 | Z66: 739 | AA66: FALSCH
A67: 225 | B67: € 739.00 | C67: =B67+20 -> € 759.00 | D67: € 779.00 | E67: € 799.00 | F67: € 819.00 | H67: € 689.00 | J67: 23.52 | K67: 1 | L67: 4.77 | M67: € 689.00 | N67: € 716.56 | O67: € 709.00 | Q67: € 20.00 | R67: € 20.00 | T67: Preis passt | W67: € 739.00 | X67: 20 | Y67: € 759.00 | Z67: 739 | AA67: FALSCH
A68: 226 | B68: € 739.00 | C68: =B68+20 -> € 759.00 | D68: € 779.00 | E68: € 799.00 | F68: € 819.00 | H68: € 689.00 | J68: 23.46 | K68: 1 | L68: 4.77 | M68: € 689.00 | N68: € 716.56 | O68: € 709.00 | Q68: € 20.00 | R68: € 20.00 | T68: Preis passt | W68: € 739.00 | X68: 20 | Y68: € 759.00 | Z68: 739 | AA68: FALSCH
A69: 227 | B69: € 739.00 | C69: =B69+20 -> € 759.00 | D69: € 779.00 | E69: € 799.00 | F69: € 819.00 | H69: € 689.00 | J69: 23.31 | K69: 1 | L69: 4.77 | M69: € 689.00 | N69: € 716.56 | O69: € 709.00 | Q69: € 20.00 | R69: € 20.00 | T69: Preis passt | W69: € 739.00 | X69: 20 | Y69: € 759.00 | Z69: 739 | AA69: FALSCH
A70: 228 | B70: € 739.00 | C70: =B70+20 -> € 759.00 | D70: € 779.00 | E70: € 799.00 | F70: € 819.00 | H70: € 689.00 | J70: 23.44 | K70: 1 | L70: 4.77 | M70: € 689.00 | N70: =M70*1.04 -> € 716.56 | O70: € 709.00 | Q70: =O70-M70 -> € 20.00 | R70: =C70-B70 -> € 20.00 | T70: =IF(Q70=R70, "Preis passt", "Korrektur") -> Preis passt | W70: =B70 -> € 739.00 | X70: 20 | Y70: =W70+X70 -> € 759.00 | Z70: 739 | AA70: =IF(Y70=Z70,"richtig","FALSCH") -> FALSCH
A71: 229 | B71: € 739.00 | C71: =B71+20 -> € 759.00 | D71: € 779.00 | E71: € 799.00 | F71: € 819.00 | H71: € 689.00 | J71: 23.31 | K71: 1 | L71: 4.77 | M71: € 689.00 | N71: € 716.56 | O71: € 709.00 | Q71: € 20.00 | R71: € 20.00 | T71: Preis passt | W71: € 739.00 | X71: 20 | Y71: € 759.00 | Z71: 739 | AA71: FALSCH
A72: 230 | B72: € 739.00 | C72: =B72+20 -> € 759.00 | D72: € 779.00 | E72: € 799.00 | F72: € 819.00 | H72: € 689.00 | J72: 23.44 | K72: 1 | L72: 4.77 | M72: € 689.00 | N72: € 716.56 | O72: € 709.00 | Q72: € 20.00 | R72: € 20.00 | T72: Preis passt | W72: € 739.00 | X72: 20 | Y72: € 759.00 | Z72: 739 | AA72: FALSCH
A73: 231 | B73: € 739.00 | C73: =B73+20 -> € 759.00 | D73: € 779.00 | E73: € 799.00 | F73: € 819.00 | H73: € 689.00 | J73: 23.28 | K73: 1 | L73: 4.77 | M73: € 689.00 | N73: € 716.56 | O73: € 709.00 | Q73: € 20.00 | R73: € 20.00 | T73: Preis passt | W73: € 739.00 | X73: 20 | Y73: € 759.00 | Z73: 739 | AA73: FALSCH
A74: 232 | B74: € 1,239.00 | C74: =B74+40 -> € 1,279.00 | D74: =C74+40 -> € 1,319.00 | E74: € 1,359.00 | F74: € 1,399.00 | H74: € 1,189.00 | J74: 48.92 | K74: 2 + AR | L74: 7.39 | M74: € 1,189.00 | N74: € 1,236.56 | O74: € 1,229.00 | Q74: € 40.00 | R74: € 40.00 | T74: Preis passt | W74: € 1,239.00 | X74: 0 | Y74: € 1,239.00 | Z74: 1239 | AA74: richtig
A75: 233 | B75: € 739.00 | C75: =B75+20 -> € 759.00 | D75: =C75+20 -> € 779.00 | E75: =D75+20 -> € 799.00 | F75: =E75+20 -> € 819.00 | H75: € 689.00 | J75: 23.29 | K75: 1 | L75: 4.77 | M75: € 689.00 | N75: € 716.56 | O75: € 709.00 | Q75: € 20.00 | R75: € 20.00 | T75: Preis passt | W75: € 739.00 | X75: 20 | Y75: € 759.00 | Z75: 739 | AA75: FALSCH
A76: 234 | B76: € 739.00 | C76: =B76+20 -> € 759.00 | D76: € 779.00 | E76: € 799.00 | F76: € 819.00 | H76: € 689.00 | J76: 23.48 | K76: 1 | L76: 4.77 | M76: € 689.00 | N76: € 716.56 | O76: € 709.00 | Q76: € 20.00 | R76: € 20.00 | T76: Preis passt | W76: € 739.00 | X76: 20 | Y76: € 759.00 | Z76: 739 | AA76: FALSCH
A77: 235 | B77: € 739.00 | C77: =B77+20 -> € 759.00 | D77: € 779.00 | E77: € 799.00 | F77: € 819.00 | H77: € 689.00 | J77: 23.29 | K77: 1 | L77: 4.77 | M77: € 689.00 | N77: € 716.56 | O77: € 709.00 | Q77: € 20.00 | R77: € 20.00 | T77: Preis passt | W77: € 739.00 | X77: 20 | Y77: € 759.00 | Z77: 739 | AA77: FALSCH
A78: 236 | B78: € 739.00 | C78: =B78+20 -> € 759.00 | D78: € 779.00 | E78: € 799.00 | F78: € 819.00 | H78: € 689.00 | J78: 23.48 | K78: 1 | L78: 3.34 | M78: € 689.00 | N78: € 716.56 | O78: € 709.00 | Q78: € 20.00 | R78: € 20.00 | T78: Preis passt | W78: € 739.00 | X78: 20 | Y78: € 759.00 | Z78: 739 | AA78: FALSCH
A79: 237 | B79: € 1,309.00 | C79: =B79+40 -> € 1,349.00 | D79: =C79+40 -> € 1,389.00 | E79: € 1,429.00 | F79: € 1,469.00 | H79: € 1,259.00 | J79: 48.46 | K79: 3 | L79: 9.80 | M79: € 1,259.00 | N79: € 1,309.36 | O79: € 1,299.00 | Q79: € 40.00 | R79: € 40.00 | T79: Preis passt | W79: € 1,309.00 | X79: 0 | Y79: € 1,309.00 | Z79: 1309 | AA79: richtig
N80: € 0.00 | Q80: € 0.00 | R80: € 0.00 | T80: Preis passt | W80: € 0.00 | Y80: € 0.00 | AA80: richtig
A81: 301 | B81: € 989.00 | C81: =B81+30 -> € 1,019.00 | D81: =C81+30 -> € 1,049.00 | E81: € 1,079.00 | F81: € 1,109.00 | H81: € 949.00 | J81: 33.63 | K81: 2 | L81: 0.00 | M81: € 949.00 | N81: € 986.96 | O81: =ROUNDDOWN(N81/10,0)*10-1 -> € 979.00 | Q81: € 30.00 | R81: € 30.00 | T81: Preis passt | W81: € 989.00 | X81: 0 | Y81: € 989.00 | Z81: 989 | AA81: richtig
A82: 302 | B82: € 689.00 | C82: =B82+20 -> € 709.00 | D82: =C82+20 -> € 729.00 | E82: =D82+20 -> € 749.00 | F82: =E82+20 -> € 769.00 | H82: € 639.00 | J82: 22.75 | K82: 1 | L82: 0.00 | M82: € 639.00 | N82: € 664.56 | O82: =ROUNDDOWN(N82/10,0)*10-1 -> € 659.00 | Q82: € 20.00 | R82: € 20.00 | T82: Preis passt | W82: € 689.00 | X82: 20 | Y82: € 709.00 | Z82: 689 | AA82: FALSCH
A83: 303 | B83: € 689.00 | C83: =B83+20 -> € 709.00 | D83: € 729.00 | E83: € 749.00 | F83: € 769.00 | H83: € 639.00 | J83: 23.83 | K83: 1 | L83: 0.00 | M83: € 639.00 | N83: € 664.56 | O83: € 659.00 | Q83: € 20.00 | R83: € 20.00 | T83: Preis passt | W83: € 689.00 | X83: 20 | Y83: € 709.00 | Z83: 689 | AA83: FALSCH
A84: 304 | B84: € 689.00 | C84: =B84+20 -> € 709.00 | D84: € 729.00 | E84: € 749.00 | F84: € 769.00 | H84: € 639.00 | J84: 23.72 | K84: 1 | L84: 0.00 | M84: € 639.00 | N84: € 664.56 | O84: € 659.00 | Q84: € 20.00 | R84: € 20.00 | T84: Preis passt | W84: € 689.00 | X84: 20 | Y84: € 709.00 | Z84: 689 | AA84: FALSCH
A85: 305 | B85: € 689.00 | C85: =B85+20 -> € 709.00 | D85: € 729.00 | E85: € 749.00 | F85: € 769.00 | H85: € 639.00 | J85: 23.91 | K85: 1 | L85: 0.00 | M85: € 639.00 | N85: € 664.56 | O85: € 659.00 | Q85: € 20.00 | R85: € 20.00 | T85: Preis passt | W85: € 689.00 | X85: 20 | Y85: € 709.00 | Z85: 689 | AA85: FALSCH
A86: 306 | B86: € 689.00 | C86: =B86+20 -> € 709.00 | D86: € 729.00 | E86: € 749.00 | F86: € 769.00 | H86: € 639.00 | J86: 23.72 | K86: 1 | L86: 0.00 | M86: € 639.00 | N86: € 664.56 | O86: € 659.00 | Q86: € 20.00 | R86: € 20.00 | T86: Preis passt | W86: € 689.00 | X86: 20 | Y86: € 709.00 | Z86: 689 | AA86: FALSCH
A87: 307 | B87: € 689.00 | C87: =B87+20 -> € 709.00 | D87: € 729.00 | E87: € 749.00 | F87: € 769.00 | H87: € 639.00 | J87: 23.91 | K87: 1 | L87: 0.00 | M87: € 639.00 | N87: € 664.56 | O87: € 659.00 | Q87: € 20.00 | R87: € 20.00 | T87: Preis passt | W87: € 689.00 | X87: 20 | Y87: € 709.00 | Z87: 689 | AA87: FALSCH
A88: 308 | B88: € 689.00 | C88: =B88+20 -> € 709.00 | D88: € 729.00 | E88: € 749.00 | F88: € 769.00 | H88: € 639.00 | J88: 23.72 | K88: 1 | L88: 0.00 | M88: € 639.00 | N88: € 664.56 | O88: € 659.00 | Q88: € 20.00 | R88: € 20.00 | T88: Preis passt | W88: € 689.00 | X88: 20 | Y88: € 709.00 | Z88: 689 | AA88: FALSCH
A89: 309 | B89: € 689.00 | C89: =B89+20 -> € 709.00 | D89: € 729.00 | E89: € 749.00 | F89: € 769.00 | H89: € 639.00 | J89: 23.91 | K89: 1 | L89: 0.00 | M89: € 639.00 | N89: € 664.56 | O89: € 659.00 | Q89: € 20.00 | R89: € 20.00 | T89: Preis passt | W89: € 689.00 | X89: 20 | Y89: € 709.00 | Z89: 689 | AA89: FALSCH
A90: 310 | B90: € 689.00 | C90: =B90+20 -> € 709.00 | D90: € 729.00 | E90: € 749.00 | F90: € 769.00 | H90: € 639.00 | J90: 23.72 | K90: 1 | L90: 0.00 | M90: € 639.00 | N90: € 664.56 | O90: € 659.00 | Q90: € 20.00 | R90: € 20.00 | T90: Preis passt | W90: € 689.00 | X90: 20 | Y90: € 709.00 | Z90: 689 | AA90: FALSCH
A91: 311 | B91: € 689.00 | C91: =B91+20 -> € 709.00 | D91: € 729.00 | E91: € 749.00 | F91: € 769.00 | H91: € 639.00 | J91: 23.91 | K91: 1 | L91: 0.00 | M91: € 639.00 | N91: € 664.56 | O91: € 659.00 | Q91: € 20.00 | R91: € 20.00 | T91: Preis passt | W91: € 689.00 | X91: 20 | Y91: € 709.00 | Z91: 689 | AA91: FALSCH
A92: 312 | B92: € 689.00 | C92: =B92+20 -> € 709.00 | D92: € 729.00 | E92: € 749.00 | F92: € 769.00 | H92: € 639.00 | J92: 23.72 | K92: 1 | L92: 0.00 | M92: € 639.00 | N92: € 664.56 | O92: € 659.00 | Q92: € 20.00 | R92: € 20.00 | T92: Preis passt | W92: € 689.00 | X92: 20 | Y92: € 709.00 | Z92: 689 | AA92: FALSCH
A93: 313 | B93: € 689.00 | C93: =B93+20 -> € 709.00 | D93: € 729.00 | E93: € 749.00 | F93: € 769.00 | H93: € 639.00 | J93: 23.91 | K93: 1 | L93: 0.00 | M93: € 639.00 | N93: € 664.56 | O93: € 659.00 | Q93: € 20.00 | R93: € 20.00 | T93: Preis passt | W93: € 689.00 | X93: 20 | Y93: € 709.00 | Z93: 689 | AA93: FALSCH
A94: 314 | B94: € 689.00 | C94: =B94+20 -> € 709.00 | D94: € 729.00 | E94: € 749.00 | F94: € 769.00 | H94: € 639.00 | J94: 23.72 | K94: 1 | L94: 0.00 | M94: € 639.00 | N94: € 664.56 | O94: € 659.00 | Q94: € 20.00 | R94: € 20.00 | T94: Preis passt | W94: € 689.00 | X94: 20 | Y94: € 709.00 | Z94: 689 | AA94: FALSCH
A95: 315 | B95: € 689.00 | C95: =B95+20 -> € 709.00 | D95: € 729.00 | E95: € 749.00 | F95: € 769.00 | H95: € 639.00 | J95: 23.91 | K95: 1 | L95: 0.00 | M95: € 639.00 | N95: € 664.56 | O95: € 659.00 | Q95: € 20.00 | R95: € 20.00 | T95: Preis passt | W95: € 689.00 | X95: 20 | Y95: € 709.00 | Z95: 689 | AA95: FALSCH
A96: 316 | B96: € 689.00 | C96: =B96+20 -> € 709.00 | D96: € 729.00 | E96: € 749.00 | F96: € 769.00 | H96: € 639.00 | J96: 23.25 | K96: 1 | L96: 0.00 | M96: € 639.00 | N96: € 664.56 | O96: € 659.00 | Q96: € 20.00 | R96: € 20.00 | T96: Preis passt | W96: € 689.00 | X96: 20 | Y96: € 709.00 | Z96: 689 | AA96: FALSCH
A97: 317 | B97: € 689.00 | C97: =B97+20 -> € 709.00 | D97: € 729.00 | E97: € 749.00 | F97: € 769.00 | H97: € 639.00 | J97: 22.53 | K97: 1 | L97: 0.00 | M97: € 639.00 | N97: € 664.56 | O97: € 659.00 | Q97: € 20.00 | R97: € 20.00 | T97: Preis passt | W97: € 689.00 | X97: 20 | Y97: € 709.00 | Z97: 689 | AA97: FALSCH
A98: 318 | B98: € 1,239.00 | C98: =B98+40 -> € 1,279.00 | D98: =C98+40 -> € 1,319.00 | E98: € 1,359.00 | F98: € 1,399.00 | H98: € 1,099.00 | J98: 51.41 | K98: 2 | L98: 0.00 | M98: € 1,099.00 | N98: € 1,142.96 | O98: =ROUNDDOWN(N98/10,0)*10-1 -> € 1,139.00 | Q98: € 40.00 | R98: € 40.00 | T98: Preis passt | W98: € 1,239.00 | X98: 100 | Y98: € 1,339.00 | Z98: 1239 | AA98: FALSCH
A99: 319 | B99: € 969.00 | C99: =B99+30 -> € 999.00 | D99: =C99+30 -> € 1,029.00 | E99: € 1,059.00 | F99: € 1,089.00 | H99: € 929.00 | J99: 40.33 | K99: 1 | L99: 0.00 | M99: € 929.00 | N99: € 966.16 | O99: =ROUNDDOWN(N99/10,0)*10-1 -> € 959.00 | Q99: € 30.00 | R99: € 30.00 | T99: Preis passt | W99: € 969.00 | X99: 0 | Y99: € 969.00 | Z99: 969 | AA99: richtig
A100: 320 | B100: € 689.00 | C100: =B100+20 -> € 709.00 | D100: =C100+20 -> € 729.00 | E100: =D100+20 -> € 749.00 | F100: =E100+20 -> € 769.00 | H100: € 639.00 | J100: 21.81 | K100: 1 | L100: 0.00 | M100: € 639.00 | N100: € 664.56 | O100: =ROUNDDOWN(N100/10,0)*10-1 -> € 659.00 | Q100: € 20.00 | R100: € 20.00 | T100: Preis passt | W100: € 689.00 | X100: 20 | Y100: € 709.00 | Z100: 689 | AA100: FALSCH
A101: 321 | B101: € 889.00 | C101: =B101+30 -> € 919.00 | D101: =C101+30 -> € 949.00 | E101: € 979.00 | F101: € 1,009.00 | H101: € 859.00 | J101: 33.39 | K101: 1 | L101: 12.44 | M101: € 859.00 | N101: € 893.36 | O101: =ROUNDDOWN(N101/10,0)*10-1 -> € 889.00 | Q101: € 30.00 | R101: € 30.00 | T101: Preis passt | W101: € 889.00 | X101: 0 | Y101: € 889.00 | Z101: 889 | AA101: richtig
A102: 322 | B102: € 739.00 | C102: =B102+20 -> € 759.00 | D102: =C102+20 -> € 779.00 | E102: =D102+20 -> € 799.00 | F102: =E102+20 -> € 819.00 | H102: € 689.00 | J102: 23.48 | K102: 1 | L102: 4.77 | M102: € 689.00 | N102: € 716.56 | O102: =ROUNDDOWN(N102/10,0)*10-1 -> € 709.00 | Q102: € 20.00 | R102: € 20.00 | T102: Preis passt | W102: € 739.00 | X102: 20 | Y102: € 759.00 | Z102: 739 | AA102: FALSCH
A103: 323 | B103: € 739.00 | C103: =B103+20 -> € 759.00 | D103: € 779.00 | E103: € 799.00 | F103: € 819.00 | H103: € 689.00 | J103: 23.48 | K103: 1 | L103: 4.77 | M103: € 689.00 | N103: € 716.56 | O103: € 709.00 | Q103: € 20.00 | R103: € 20.00 | T103: Preis passt | W103: € 739.00 | X103: 20 | Y103: € 759.00 | Z103: 739 | AA103: FALSCH
A104: 324 | B104: € 739.00 | C104: =B104+20 -> € 759.00 | D104: € 779.00 | E104: € 799.00 | F104: € 819.00 | H104: € 689.00 | J104: 23.21 | K104: 1 | L104: 4.77 | M104: € 689.00 | N104: € 716.56 | O104: € 709.00 | Q104: € 20.00 | R104: € 20.00 | T104: Preis passt | W104: € 739.00 | X104: 20 | Y104: € 759.00 | Z104: 739 | AA104: FALSCH
A105: 325 | B105: € 739.00 | C105: =B105+20 -> € 759.00 | D105: € 779.00 | E105: € 799.00 | F105: € 819.00 | H105: € 689.00 | J105: 23.52 | K105: 1 | L105: 4.77 | M105: € 689.00 | N105: € 716.56 | O105: € 709.00 | Q105: € 20.00 | R105: € 20.00 | T105: Preis passt | W105: € 739.00 | X105: 20 | Y105: € 759.00 | Z105: 739 | AA105: FALSCH
A106: 326 | B106: € 739.00 | C106: =B106+20 -> € 759.00 | D106: € 779.00 | E106: € 799.00 | F106: € 819.00 | H106: € 689.00 | J106: 23.46 | K106: 1 | L106: 4.77 | M106: € 689.00 | N106: € 716.56 | O106: € 709.00 | Q106: € 20.00 | R106: € 20.00 | T106: Preis passt | W106: € 739.00 | X106: 20 | Y106: € 759.00 | Z106: 739 | AA106: FALSCH
A107: 327 | B107: € 739.00 | C107: =B107+20 -> € 759.00 | D107: € 779.00 | E107: € 799.00 | F107: € 819.00 | H107: € 689.00 | J107: 23.30 | K107: 1 | L107: 4.77 | M107: € 689.00 | N107: € 716.56 | O107: € 709.00 | Q107: € 20.00 | R107: € 20.00 | T107: Preis passt | W107: € 739.00 | X107: 20 | Y107: € 759.00 | Z107: 739 | AA107: FALSCH
A108: 328 | B108: € 739.00 | C108: =B108+20 -> € 759.00 | D108: € 779.00 | E108: € 799.00 | F108: € 819.00 | H108: € 689.00 | J108: 23.44 | K108: 1 | L108: 4.77 | M108: € 689.00 | N108: € 716.56 | O108: € 709.00 | Q108: € 20.00 | R108: € 20.00 | T108: Preis passt | W108: € 739.00 | X108: 20 | Y108: € 759.00 | Z108: 739 | AA108: FALSCH
A109: 329 | B109: € 739.00 | C109: =B109+20 -> € 759.00 | D109: € 779.00 | E109: € 799.00 | F109: € 819.00 | H109: € 689.00 | J109: 23.30 | K109: 1 | L109: 4.77 | M109: € 689.00 | N109: € 716.56 | O109: € 709.00 | Q109: € 20.00 | R109: € 20.00 | T109: Preis passt | W109: € 739.00 | X109: 20 | Y109: € 759.00 | Z109: 739 | AA109: FALSCH
A110: 330 | B110: € 739.00 | C110: =B110+20 -> € 759.00 | D110: € 779.00 | E110: € 799.00 | F110: € 819.00 | H110: € 689.00 | J110: 23.45 | K110: 1 | L110: 4.77 | M110: € 689.00 | N110: € 716.56 | O110: € 709.00 | Q110: € 20.00 | R110: € 20.00 | T110: Preis passt | W110: € 739.00 | X110: 20 | Y110: € 759.00 | Z110: 739 | AA110: FALSCH
A111: 331 | B111: € 739.00 | C111: =B111+20 -> € 759.00 | D111: € 779.00 | E111: € 799.00 | F111: € 819.00 | H111: € 689.00 | J111: 23.28 | K111: 1 | L111: 4.77 | M111: € 689.00 | N111: € 716.56 | O111: € 709.00 | Q111: € 20.00 | R111: € 20.00 | T111: Preis passt | W111: € 739.00 | X111: 20 | Y111: € 759.00 | Z111: 739 | AA111: FALSCH
A112: 332 | B112: € 1,239.00 | C112: =B112+40 -> € 1,279.00 | D112: =C112+40 -> € 1,319.00 | E112: € 1,359.00 | F112: € 1,399.00 | H112: € 1,189.00 | J112: 48.86 | K112: 2 + AR | L112: 7.39 | M112: € 1,189.00 | N112: € 1,236.56 | O112: € 1,229.00 | Q112: € 40.00 | R112: € 40.00 | T112: Preis passt | W112: € 1,239.00 | X112: 0 | Y112: € 1,239.00 | Z112: 1239 | AA112: richtig
A113: 333 | B113: € 739.00 | C113: =B113+20 -> € 759.00 | D113: =C113+20 -> € 779.00 | E113: =D113+20 -> € 799.00 | F113: =E113+20 -> € 819.00 | H113: € 689.00 | J113: 23.29 | K113: 1 | L113: 4.77 | M113: € 689.00 | N113: € 716.56 | O113: € 709.00 | Q113: € 20.00 | R113: € 20.00 | T113: Preis passt | W113: € 739.00 | X113: 20 | Y113: € 759.00 | Z113: 739 | AA113: FALSCH
A114: 334 | B114: € 739.00 | C114: =B114+20 -> € 759.00 | D114: € 779.00 | E114: € 799.00 | F114: € 819.00 | H114: € 689.00 | J114: 23.48 | K114: 1 | L114: 4.77 | M114: € 689.00 | N114: € 716.56 | O114: € 709.00 | Q114: € 20.00 | R114: € 20.00 | T114: Preis passt | W114: € 739.00 | X114: 20 | Y114: € 759.00 | Z114: 739 | AA114: FALSCH
A115: 335 | B115: € 739.00 | C115: =B115+20 -> € 759.00 | D115: € 779.00 | E115: € 799.00 | F115: € 819.00 | H115: € 689.00 | J115: 23.29 | K115: 1 | L115: 4.77 | M115: € 689.00 | N115: € 716.56 | O115: € 709.00 | Q115: € 20.00 | R115: € 20.00 | T115: Preis passt | W115: € 739.00 | X115: 20 | Y115: € 759.00 | Z115: 739 | AA115: FALSCH
A116: 336 | B116: € 739.00 | C116: =B116+20 -> € 759.00 | D116: € 779.00 | E116: € 799.00 | F116: € 819.00 | H116: € 689.00 | J116: 23.48 | K116: 1 | L116: 3.34 | M116: € 689.00 | N116: € 716.56 | O116: € 709.00 | Q116: € 20.00 | R116: € 20.00 | T116: Preis passt | W116: € 739.00 | X116: 20 | Y116: € 759.00 | Z116: 739 | AA116: FALSCH
A117: 337 | B117: € 1,309.00 | C117: =B117+40 -> € 1,349.00 | D117: =C117+40 -> € 1,389.00 | E117: € 1,429.00 | F117: € 1,469.00 | H117: € 1,259.00 | J117: 48.47 | K117: 3 | L117: 9.80 | M117: € 1,259.00 | N117: € 1,309.36 | O117: € 1,299.00 | Q117: € 40.00 | R117: € 40.00 | T117: Preis passt | W117: € 1,309.00 | X117: 0 | Y117: € 1,309.00 | Z117: 1309 | AA117: richtig
N118: € 0.00 | Q118: € 0.00 | R118: € 0.00 | T118: Preis passt | W118: € 0.00 | Y118: € 0.00 | AA118: richtig
A119: 401 | B119: € 989.00 | C119: =B119+30 -> € 1,019.00 | D119: =C119+30 -> € 1,049.00 | E119: € 1,079.00 | F119: € 1,109.00 | H119: € 949.00 | J119: 33.63 | K119: 2 | L119: 0.00 | M119: € 949.00 | N119: € 986.96 | O119: =ROUNDDOWN(N119/10,0)*10-1 -> € 979.00 | Q119: € 30.00 | R119: € 30.00 | T119: Preis passt | W119: € 989.00 | X119: 0 | Y119: € 989.00 | Z119: 989 | AA119: richtig
A120: 402 | B120: € 719.00 | C120: =B120+20 -> € 739.00 | D120: =C120+20 -> € 759.00 | E120: =D120+20 -> € 779.00 | F120: =E120+20 -> € 799.00 | H120: € 669.00 | J120: 22.75 | K120: 1 | L120: 0.00 | M120: € 669.00 | N120: € 695.76 | O120: =ROUNDDOWN(N120/10,0)*10-1 -> € 689.00 | Q120: € 20.00 | R120: € 20.00 | T120: Preis passt | W120: € 719.00 | X120: 20 | Y120: € 739.00 | Z120: 719 | AA120: FALSCH
A121: 403 | B121: € 719.00 | C121: =B121+20 -> € 739.00 | D121: € 759.00 | E121: € 779.00 | F121: € 799.00 | H121: € 669.00 | J121: 23.83 | K121: 1 | L121: 0.00 | M121: € 669.00 | N121: € 695.76 | O121: € 689.00 | Q121: € 20.00 | R121: € 20.00 | T121: Preis passt | W121: € 719.00 | X121: 20 | Y121: € 739.00 | Z121: 719 | AA121: FALSCH
A122: 404 | B122: € 719.00 | C122: =B122+20 -> € 739.00 | D122: € 759.00 | E122: € 779.00 | F122: € 799.00 | H122: € 669.00 | J122: 23.72 | K122: 1 | L122: 0.00 | M122: € 669.00 | N122: € 695.76 | O122: € 689.00 | Q122: € 20.00 | R122: € 20.00 | T122: Preis passt | W122: € 719.00 | X122: 20 | Y122: € 739.00 | Z122: 719 | AA122: FALSCH
A123: 405 | B123: € 719.00 | C123: =B123+20 -> € 739.00 | D123: € 759.00 | E123: € 779.00 | F123: € 799.00 | H123: € 669.00 | J123: 23.91 | K123: 1 | L123: 0.00 | M123: € 669.00 | N123: € 695.76 | O123: € 689.00 | Q123: € 20.00 | R123: € 20.00 | T123: Preis passt | W123: € 719.00 | X123: 20 | Y123: € 739.00 | Z123: 719 | AA123: FALSCH
A124: 406 | B124: € 719.00 | C124: =B124+20 -> € 739.00 | D124: € 759.00 | E124: € 779.00 | F124: € 799.00 | H124: € 669.00 | J124: 23.72 | K124: 1 | L124: 0.00 | M124: € 669.00 | N124: € 695.76 | O124: € 689.00 | Q124: € 20.00 | R124: € 20.00 | T124: Preis passt | W124: € 719.00 | X124: 20 | Y124: € 739.00 | Z124: 719 | AA124: FALSCH
A125: 407 | B125: € 719.00 | C125: =B125+20 -> € 739.00 | D125: € 759.00 | E125: € 779.00 | F125: € 799.00 | H125: € 669.00 | J125: 23.91 | K125: 1 | L125: 0.00 | M125: € 669.00 | N125: € 695.76 | O125: € 689.00 | Q125: € 20.00 | R125: € 20.00 | T125: Preis passt | W125: € 719.00 | X125: 20 | Y125: € 739.00 | Z125: 719 | AA125: FALSCH
A126: 408 | B126: € 719.00 | C126: =B126+20 -> € 739.00 | D126: € 759.00 | E126: € 779.00 | F126: € 799.00 | H126: € 669.00 | J126: 23.72 | K126: 1 | L126: 0.00 | M126: € 669.00 | N126: € 695.76 | O126: € 689.00 | Q126: € 20.00 | R126: € 20.00 | T126: Preis passt | W126: € 719.00 | X126: 20 | Y126: € 739.00 | Z126: 719 | AA126: FALSCH
A127: 409 | B127: € 719.00 | C127: =B127+20 -> € 739.00 | D127: € 759.00 | E127: € 779.00 | F127: € 799.00 | H127: € 669.00 | J127: 23.91 | K127: 1 | L127: 0.00 | M127: € 669.00 | N127: € 695.76 | O127: € 689.00 | Q127: € 20.00 | R127: € 20.00 | T127: Preis passt | W127: € 719.00 | X127: 20 | Y127: € 739.00 | Z127: 719 | AA127: FALSCH
A128: 410 | B128: € 719.00 | C128: =B128+20 -> € 739.00 | D128: € 759.00 | E128: € 779.00 | F128: € 799.00 | H128: € 669.00 | J128: 23.72 | K128: 1 | L128: 0.00 | M128: € 669.00 | N128: € 695.76 | O128: € 689.00 | Q128: € 20.00 | R128: € 20.00 | T128: Preis passt | W128: € 719.00 | X128: 20 | Y128: € 739.00 | Z128: 719 | AA128: FALSCH
A129: 411 | B129: € 719.00 | C129: =B129+20 -> € 739.00 | D129: € 759.00 | E129: € 779.00 | F129: € 799.00 | H129: € 669.00 | J129: 23.91 | K129: 1 | L129: 0.00 | M129: € 669.00 | N129: € 695.76 | O129: € 689.00 | Q129: € 20.00 | R129: € 20.00 | T129: Preis passt | W129: € 719.00 | X129: 20 | Y129: € 739.00 | Z129: 719 | AA129: FALSCH
A130: 412 | B130: € 719.00 | C130: =B130+20 -> € 739.00 | D130: € 759.00 | E130: € 779.00 | F130: € 799.00 | H130: € 669.00 | J130: 23.72 | K130: 1 | L130: 0.00 | M130: € 669.00 | N130: € 695.76 | O130: € 689.00 | Q130: € 20.00 | R130: € 20.00 | T130: Preis passt | W130: € 719.00 | X130: 20 | Y130: € 739.00 | Z130: 719 | AA130: FALSCH
A131: 413 | B131: € 719.00 | C131: =B131+20 -> € 739.00 | D131: € 759.00 | E131: € 779.00 | F131: € 799.00 | H131: € 669.00 | J131: 23.91 | K131: 1 | L131: 0.00 | M131: € 669.00 | N131: € 695.76 | O131: € 689.00 | Q131: € 20.00 | R131: € 20.00 | T131: Preis passt | W131: € 719.00 | X131: 20 | Y131: € 739.00 | Z131: 719 | AA131: FALSCH
A132: 414 | B132: € 719.00 | C132: =B132+20 -> € 739.00 | D132: € 759.00 | E132: € 779.00 | F132: € 799.00 | H132: € 669.00 | J132: 23.72 | K132: 1 | L132: 0.00 | M132: € 669.00 | N132: € 695.76 | O132: € 689.00 | Q132: € 20.00 | R132: € 20.00 | T132: Preis passt | W132: € 719.00 | X132: 20 | Y132: € 739.00 | Z132: 719 | AA132: FALSCH
A133: 415 | B133: € 719.00 | C133: =B133+20 -> € 739.00 | D133: € 759.00 | E133: € 779.00 | F133: € 799.00 | H133: € 669.00 | J133: 23.91 | K133: 1 | L133: 0.00 | M133: € 669.00 | N133: € 695.76 | O133: € 689.00 | Q133: € 20.00 | R133: € 20.00 | T133: Preis passt | W133: € 719.00 | X133: 20 | Y133: € 739.00 | Z133: 719 | AA133: FALSCH
A134: 416 | B134: € 719.00 | C134: =B134+20 -> € 739.00 | D134: € 759.00 | E134: € 779.00 | F134: € 799.00 | H134: € 669.00 | J134: 23.25 | K134: 1 | L134: 0.00 | M134: € 669.00 | N134: =M134*1.04 -> € 695.76 | O134: € 689.00 | Q134: =O134-M134 -> € 20.00 | R134: =C134-B134 -> € 20.00 | T134: =IF(Q134=R134, "Preis passt", "Korrektur") -> Preis passt | W134: =B134 -> € 719.00 | X134: 20 | Y134: =W134+X134 -> € 739.00 | Z134: 719 | AA134: =IF(Y134=Z134,"richtig","FALSCH") -> FALSCH
A135: 417 | B135: € 719.00 | C135: =B135+20 -> € 739.00 | D135: € 759.00 | E135: € 779.00 | F135: € 799.00 | H135: € 669.00 | J135: 22.53 | K135: 1 | L135: 0.00 | M135: € 669.00 | N135: € 695.76 | O135: € 689.00 | Q135: € 20.00 | R135: € 20.00 | T135: Preis passt | W135: € 719.00 | X135: 20 | Y135: € 739.00 | Z135: 719 | AA135: FALSCH
A136: 418 | B136: € 1,239.00 | C136: =B136+40 -> € 1,279.00 | D136: =C136+40 -> € 1,319.00 | E136: € 1,359.00 | F136: € 1,399.00 | H136: € 1,099.00 | J136: 51.40 | K136: 2 | L136: 0.00 | M136: € 1,099.00 | N136: € 1,142.96 | O136: =ROUNDDOWN(N136/10,0)*10-1 -> € 1,139.00 | Q136: € 40.00 | R136: € 40.00 | T136: Preis passt | W136: € 1,239.00 | X136: 100 | Y136: € 1,339.00 | Z136: 1239 | AA136: FALSCH
A137: 419 | B137: € 969.00 | C137: =B137+30 -> € 999.00 | D137: =C137+30 -> € 1,029.00 | E137: € 1,059.00 | F137: € 1,089.00 | H137: € 929.00 | J137: 40.33 | K137: 1 | L137: 0.00 | M137: € 929.00 | N137: € 966.16 | O137: =ROUNDDOWN(N137/10,0)*10-1 -> € 959.00 | Q137: € 30.00 | R137: € 30.00 | T137: Preis passt | W137: € 969.00 | X137: 0 | Y137: € 969.00 | Z137: 969 | AA137: richtig
A138: 420 | B138: € 719.00 | C138: =B138+20 -> € 739.00 | D138: =C138+20 -> € 759.00 | E138: =D138+20 -> € 779.00 | F138: =E138+20 -> € 799.00 | H138: € 669.00 | J138: 21.81 | K138: 1 | L138: 0.00 | M138: € 669.00 | N138: € 695.76 | O138: =ROUNDDOWN(N138/10,0)*10-1 -> € 689.00 | Q138: € 20.00 | R138: € 20.00 | T138: Preis passt | W138: € 719.00 | X138: 20 | Y138: € 739.00 | Z138: 719 | AA138: FALSCH
A139: 421 | B139: € 889.00 | C139: =B139+30 -> € 919.00 | D139: =C139+30 -> € 949.00 | E139: € 979.00 | F139: € 1,009.00 | H139: € 859.00 | J139: 33.39 | K139: 1 | L139: 12.44 | M139: € 859.00 | N139: € 893.36 | O139: =ROUNDDOWN(N139/10,0)*10-1 -> € 889.00 | Q139: € 30.00 | R139: € 30.00 | T139: Preis passt | W139: € 889.00 | X139: 0 | Y139: € 889.00 | Z139: 889 | AA139: richtig
A140: 422 | B140: € 759.00 | C140: =B140+20 -> € 779.00 | D140: =C140+20 -> € 799.00 | E140: =D140+20 -> € 819.00 | F140: =E140+20 -> € 839.00 | H140: € 709.00 | J140: 23.48 | K140: 1 | L140: 4.77 | M140: € 709.00 | N140: € 737.36 | O140: =ROUNDDOWN(N140/10,0)*10-1 -> € 729.00 | Q140: € 20.00 | R140: € 20.00 | T140: Preis passt | W140: € 759.00 | X140: 20 | Y140: € 779.00 | Z140: 759 | AA140: FALSCH
A141: 423 | B141: € 759.00 | C141: =B141+20 -> € 779.00 | D141: € 799.00 | E141: € 819.00 | F141: € 839.00 | H141: € 709.00 | J141: 23.48 | K141: 1 | L141: 4.77 | M141: € 709.00 | N141: € 737.36 | O141: € 729.00 | Q141: € 20.00 | R141: € 20.00 | T141: Preis passt | W141: € 759.00 | X141: 20 | Y141: € 779.00 | Z141: 759 | AA141: FALSCH
A142: 424 | B142: € 759.00 | C142: =B142+20 -> € 779.00 | D142: € 799.00 | E142: € 819.00 | F142: € 839.00 | H142: € 709.00 | J142: 23.21 | K142: 1 | L142: 4.77 | M142: € 709.00 | N142: € 737.36 | O142: € 729.00 | Q142: € 20.00 | R142: € 20.00 | T142: Preis passt | W142: € 759.00 | X142: 20 | Y142: € 779.00 | Z142: 759 | AA142: FALSCH
A143: 425 | B143: € 759.00 | C143: =B143+20 -> € 779.00 | D143: € 799.00 | E143: € 819.00 | F143: € 839.00 | H143: € 709.00 | J143: 23.47 | K143: 1 | L143: 4.77 | M143: € 709.00 | N143: € 737.36 | O143: € 729.00 | Q143: € 20.00 | R143: € 20.00 | T143: Preis passt | W143: € 759.00 | X143: 20 | Y143: € 779.00 | Z143: 759 | AA143: FALSCH
A144: 426 | B144: € 759.00 | C144: =B144+20 -> € 779.00 | D144: € 799.00 | E144: € 819.00 | F144: € 839.00 | H144: € 709.00 | J144: 23.45 | K144: 1 | L144: 4.77 | M144: € 709.00 | N144: € 737.36 | O144: € 729.00 | Q144: € 20.00 | R144: € 20.00 | T144: Preis passt | W144: € 759.00 | X144: 20 | Y144: € 779.00 | Z144: 759 | AA144: FALSCH
A145: 427 | B145: € 759.00 | C145: =B145+20 -> € 779.00 | D145: € 799.00 | E145: € 819.00 | F145: € 839.00 | H145: € 709.00 | J145: 23.29 | K145: 1 | L145: 4.77 | M145: € 709.00 | N145: € 737.36 | O145: € 729.00 | Q145: € 20.00 | R145: € 20.00 | T145: Preis passt | W145: € 759.00 | X145: 20 | Y145: € 779.00 | Z145: 759 | AA145: FALSCH
A146: 428 | B146: € 759.00 | C146: =B146+20 -> € 779.00 | D146: € 799.00 | E146: € 819.00 | F146: € 839.00 | H146: € 709.00 | J146: 23.45 | K146: 1 | L146: 4.77 | M146: € 709.00 | N146: € 737.36 | O146: € 729.00 | Q146: € 20.00 | R146: € 20.00 | T146: Preis passt | W146: € 759.00 | X146: 20 | Y146: € 779.00 | Z146: 759 | AA146: FALSCH
A147: 429 | B147: € 759.00 | C147: =B147+20 -> € 779.00 | D147: € 799.00 | E147: € 819.00 | F147: € 839.00 | H147: € 709.00 | J147: 23.27 | K147: 1 | L147: 4.77 | M147: € 709.00 | N147: € 737.36 | O147: € 729.00 | Q147: € 20.00 | R147: € 20.00 | T147: Preis passt | W147: € 759.00 | X147: 20 | Y147: € 779.00 | Z147: 759 | AA147: FALSCH
A148: 430 | B148: € 759.00 | C148: =B148+20 -> € 779.00 | D148: € 799.00 | E148: € 819.00 | F148: € 839.00 | H148: € 709.00 | J148: 23.45 | K148: 1 | L148: 4.77 | M148: € 709.00 | N148: € 737.36 | O148: € 729.00 | Q148: € 20.00 | R148: € 20.00 | T148: Preis passt | W148: € 759.00 | X148: 20 | Y148: € 779.00 | Z148: 759 | AA148: FALSCH
A149: 431 | B149: € 759.00 | C149: =B149+20 -> € 779.00 | D149: € 799.00 | E149: € 819.00 | F149: € 839.00 | H149: € 709.00 | J149: 23.28 | K149: 1 | L149: 4.77 | M149: € 709.00 | N149: € 737.36 | O149: € 729.00 | Q149: € 20.00 | R149: € 20.00 | T149: Preis passt | W149: € 759.00 | X149: 20 | Y149: € 779.00 | Z149: 759 | AA149: FALSCH
A150: 432 | B150: € 1,229.00 | C150: =B150+40 -> € 1,269.00 | D150: =C150+40 -> € 1,309.00 | E150: € 1,349.00 | F150: € 1,389.00 | H150: € 1,179.00 | J150: 48.85 | K150: 2 + AR | L150: 7.39 | M150: € 1,179.00 | N150: € 1,226.16 | O150: € 1,219.00 | Q150: € 40.00 | R150: € 40.00 | T150: Preis passt | W150: € 1,229.00 | X150: 0 | Y150: € 1,229.00 | Z150: 1229 | AA150: richtig
A151: 433 | B151: € 759.00 | C151: =B151+20 -> € 779.00 | D151: =C151+20 -> € 799.00 | E151: =D151+20 -> € 819.00 | F151: =E151+20 -> € 839.00 | H151: € 709.00 | J151: 23.29 | K151: 1 | L151: 4.77 | M151: € 709.00 | N151: € 737.36 | O151: € 729.00 | Q151: € 20.00 | R151: € 20.00 | T151: Preis passt | W151: € 759.00 | X151: 20 | Y151: € 779.00 | Z151: 759 | AA151: FALSCH
A152: 434 | B152: € 759.00 | C152: =B152+20 -> € 779.00 | D152: € 799.00 | E152: € 819.00 | F152: € 839.00 | H152: € 709.00 | J152: 23.48 | K152: 1 | L152: 4.77 | M152: € 709.00 | N152: € 737.36 | O152: € 729.00 | Q152: € 20.00 | R152: € 20.00 | T152: Preis passt | W152: € 759.00 | X152: 20 | Y152: € 779.00 | Z152: 759 | AA152: FALSCH
A153: 435 | B153: € 759.00 | C153: =B153+20 -> € 779.00 | D153: € 799.00 | E153: € 819.00 | F153: € 839.00 | H153: € 709.00 | J153: 23.29 | K153: 1 | L153: 4.77 | M153: € 709.00 | N153: € 737.36 | O153: € 729.00 | Q153: € 20.00 | R153: € 20.00 | T153: Preis passt | W153: € 759.00 | X153: 20 | Y153: € 779.00 | Z153: 759 | AA153: FALSCH
A154: 436 | B154: € 759.00 | C154: =B154+20 -> € 779.00 | D154: € 799.00 | E154: € 819.00 | F154: € 839.00 | H154: € 709.00 | J154: 23.48 | K154: 1 | L154: 3.34 | M154: € 709.00 | N154: € 737.36 | O154: € 729.00 | Q154: € 20.00 | R154: € 20.00 | T154: Preis passt | W154: € 759.00 | X154: 20 | Y154: € 779.00 | Z154: 759 | AA154: FALSCH
A155: 437 | B155: € 1,279.00 | C155: =B155+40 -> € 1,319.00 | D155: =C155+40 -> € 1,359.00 | E155: € 1,399.00 | F155: € 1,439.00 | H155: € 1,229.00 | J155: 48.39 | K155: 3 | L155: 9.80 | M155: € 1,229.00 | N155: € 1,278.16 | O155: € 1,269.00 | Q155: € 40.00 | R155: € 40.00 | T155: Preis passt | W155: € 1,279.00 | X155: 0 | Y155: € 1,279.00 | Z155: 1279 | AA155: richtig
N156: € 0.00 | Q156: € 0.00 | R156: € 0.00 | T156: Preis passt | W156: € 0.00 | Y156: € 0.00 | AA156: richtig
A157: 501 | B157: € 989.00 | C157: =B157+30 -> € 1,019.00 | D157: =C157+30 -> € 1,049.00 | E157: € 1,079.00 | F157: € 1,109.00 | H157: € 949.00 | J157: 33.63 | K157: 2 | L157: 0.00 | M157: € 949.00 | N157: € 986.96 | O157: =ROUNDDOWN(N157/10,0)*10-1 -> € 979.00 | Q157: € 30.00 | R157: € 30.00 | T157: Preis passt | W157: € 989.00 | X157: 0 | Y157: € 989.00 | Z157: 989 | AA157: richtig
A158: 502 | B158: € 719.00 | C158: =B158+20 -> € 739.00 | D158: =C158+20 -> € 759.00 | E158: =D158+20 -> € 779.00 | F158: =E158+20 -> € 799.00 | H158: € 669.00 | J158: 22.75 | K158: 1 | L158: 0.00 | M158: € 669.00 | N158: € 695.76 | O158: =ROUNDDOWN(N158/10,0)*10-1 -> € 689.00 | Q158: € 20.00 | R158: € 20.00 | T158: Preis passt | W158: € 719.00 | X158: 20 | Y158: € 739.00 | Z158: 719 | AA158: FALSCH
A159: 503 | B159: € 719.00 | C159: =B159+20 -> € 739.00 | D159: € 759.00 | E159: € 779.00 | F159: € 799.00 | H159: € 669.00 | J159: 23.82 | K159: 1 | L159: 0.00 | M159: € 669.00 | N159: € 695.76 | O159: € 689.00 | Q159: € 20.00 | R159: € 20.00 | T159: Preis passt | W159: € 719.00 | X159: 20 | Y159: € 739.00 | Z159: 719 | AA159: FALSCH
A160: 504 | B160: € 719.00 | C160: =B160+20 -> € 739.00 | D160: € 759.00 | E160: € 779.00 | F160: € 799.00 | H160: € 669.00 | J160: 23.71 | K160: 1 | L160: 0.00 | M160: € 669.00 | N160: € 695.76 | O160: € 689.00 | Q160: € 20.00 | R160: € 20.00 | T160: Preis passt | W160: € 719.00 | X160: 20 | Y160: € 739.00 | Z160: 719 | AA160: FALSCH
A161: 505 | B161: € 719.00 | C161: =B161+20 -> € 739.00 | D161: € 759.00 | E161: € 779.00 | F161: € 799.00 | H161: € 669.00 | J161: 23.90 | K161: 1 | L161: 0.00 | M161: € 669.00 | N161: € 695.76 | O161: € 689.00 | Q161: € 20.00 | R161: € 20.00 | T161: Preis passt | W161: € 719.00 | X161: 20 | Y161: € 739.00 | Z161: 719 | AA161: FALSCH
A162: 506 | B162: € 719.00 | C162: =B162+20 -> € 739.00 | D162: € 759.00 | E162: € 779.00 | F162: € 799.00 | H162: € 669.00 | J162: 23.72 | K162: 1 | L162: 0.00 | M162: € 669.00 | N162: € 695.76 | O162: € 689.00 | Q162: € 20.00 | R162: € 20.00 | T162: Preis passt | W162: € 719.00 | X162: 20 | Y162: € 739.00 | Z162: 719 | AA162: FALSCH
A163: 507 | B163: € 719.00 | C163: =B163+20 -> € 739.00 | D163: € 759.00 | E163: € 779.00 | F163: € 799.00 | H163: € 669.00 | J163: 23.91 | K163: 1 | L163: 0.00 | M163: € 669.00 | N163: € 695.76 | O163: € 689.00 | Q163: € 20.00 | R163: € 20.00 | T163: Preis passt | W163: € 719.00 | X163: 20 | Y163: € 739.00 | Z163: 719 | AA163: FALSCH
A164: 508 | B164: € 719.00 | C164: =B164+20 -> € 739.00 | D164: € 759.00 | E164: € 779.00 | F164: € 799.00 | H164: € 669.00 | J164: 23.71 | K164: 1 | L164: 0.00 | M164: € 669.00 | N164: € 695.76 | O164: € 689.00 | Q164: € 20.00 | R164: € 20.00 | T164: Preis passt | W164: € 719.00 | X164: 20 | Y164: € 739.00 | Z164: 719 | AA164: FALSCH
A165: 509 | B165: € 719.00 | C165: =B165+20 -> € 739.00 | D165: € 759.00 | E165: € 779.00 | F165: € 799.00 | H165: € 669.00 | J165: 23.90 | K165: 1 | L165: 0.00 | M165: € 669.00 | N165: € 695.76 | O165: € 689.00 | Q165: € 20.00 | R165: € 20.00 | T165: Preis passt | W165: € 719.00 | X165: 20 | Y165: € 739.00 | Z165: 719 | AA165: FALSCH
A166: 510 | B166: € 719.00 | C166: =B166+20 -> € 739.00 | D166: € 759.00 | E166: € 779.00 | F166: € 799.00 | H166: € 669.00 | J166: 23.71 | K166: 1 | L166: 0.00 | M166: € 669.00 | N166: € 695.76 | O166: € 689.00 | Q166: € 20.00 | R166: € 20.00 | T166: Preis passt | W166: € 719.00 | X166: 20 | Y166: € 739.00 | Z166: 719 | AA166: FALSCH
A167: 511 | B167: € 719.00 | C167: =B167+20 -> € 739.00 | D167: € 759.00 | E167: € 779.00 | F167: € 799.00 | H167: € 669.00 | J167: 23.90 | K167: 1 | L167: 0.00 | M167: € 669.00 | N167: € 695.76 | O167: € 689.00 | Q167: € 20.00 | R167: € 20.00 | T167: Preis passt | W167: € 719.00 | X167: 20 | Y167: € 739.00 | Z167: 719 | AA167: FALSCH
A168: 512 | B168: € 719.00 | C168: =B168+20 -> € 739.00 | D168: € 759.00 | E168: € 779.00 | F168: € 799.00 | H168: € 669.00 | J168: 23.72 | K168: 1 | L168: 0.00 | M168: € 669.00 | N168: € 695.76 | O168: € 689.00 | Q168: € 20.00 | R168: € 20.00 | T168: Preis passt | W168: € 719.00 | X168: 20 | Y168: € 739.00 | Z168: 719 | AA168: FALSCH
A169: 513 | B169: € 719.00 | C169: =B169+20 -> € 739.00 | D169: € 759.00 | E169: € 779.00 | F169: € 799.00 | H169: € 669.00 | J169: 23.91 | K169: 1 | L169: 0.00 | M169: € 669.00 | N169: € 695.76 | O169: € 689.00 | Q169: € 20.00 | R169: € 20.00 | T169: Preis passt | W169: € 719.00 | X169: 20 | Y169: € 739.00 | Z169: 719 | AA169: FALSCH
A170: 514 | B170: € 719.00 | C170: =B170+20 -> € 739.00 | D170: € 759.00 | E170: € 779.00 | F170: € 799.00 | H170: € 669.00 | J170: 23.72 | K170: 1 | L170: 0.00 | M170: € 669.00 | N170: € 695.76 | O170: € 689.00 | Q170: € 20.00 | R170: € 20.00 | T170: Preis passt | W170: € 719.00 | X170: 20 | Y170: € 739.00 | Z170: 719 | AA170: FALSCH
A171: 515 | B171: € 719.00 | C171: =B171+20 -> € 739.00 | D171: € 759.00 | E171: € 779.00 | F171: € 799.00 | H171: € 669.00 | J171: 23.91 | K171: 1 | L171: 0.00 | M171: € 669.00 | N171: € 695.76 | O171: € 689.00 | Q171: € 20.00 | R171: € 20.00 | T171: Preis passt | W171: € 719.00 | X171: 20 | Y171: € 739.00 | Z171: 719 | AA171: FALSCH
A172: 516 | B172: € 719.00 | C172: =B172+20 -> € 739.00 | D172: € 759.00 | E172: € 779.00 | F172: € 799.00 | H172: € 669.00 | J172: 23.25 | K172: 1 | L172: 0.00 | M172: € 669.00 | N172: € 695.76 | O172: € 689.00 | Q172: € 20.00 | R172: € 20.00 | T172: Preis passt | W172: € 719.00 | X172: 20 | Y172: € 739.00 | Z172: 719 | AA172: FALSCH
A173: 517 | B173: € 719.00 | C173: =B173+20 -> € 739.00 | D173: € 759.00 | E173: € 779.00 | F173: € 799.00 | H173: € 669.00 | J173: 22.53 | K173: 1 | L173: 0.00 | M173: € 669.00 | N173: € 695.76 | O173: € 689.00 | Q173: € 20.00 | R173: € 20.00 | T173: Preis passt | W173: € 719.00 | X173: 20 | Y173: € 739.00 | Z173: 719 | AA173: FALSCH
A174: 518 | B174: € 1,239.00 | C174: =B174+40 -> € 1,279.00 | D174: =C174+40 -> € 1,319.00 | E174: € 1,359.00 | F174: € 1,399.00 | H174: € 1,099.00 | J174: 51.40 | K174: 2 | L174: 0.00 | M174: € 1,099.00 | N174: € 1,142.96 | O174: € 1,139.00 | Q174: € 40.00 | R174: € 40.00 | T174: Preis passt | W174: € 1,239.00 | X174: 100 | Y174: € 1,339.00 | Z174: 1239 | AA174: FALSCH
A175: 519 | B175: € 969.00 | C175: =B175+30 -> € 999.00 | D175: =C175+30 -> € 1,029.00 | E175: € 1,059.00 | F175: € 1,089.00 | H175: € 929.00 | J175: 40.33 | K175: 1 | L175: 0.00 | M175: € 929.00 | N175: € 966.16 | O175: € 959.00 | Q175: € 30.00 | R175: € 30.00 | T175: Preis passt | W175: € 969.00 | X175: 0 | Y175: € 969.00 | Z175: 969 | AA175: richtig
A176: 520 | B176: € 1,379.00 | C176: =B176+50 -> € 1,429.00 | D176: =C176+50 -> € 1,479.00 | E176: € 1,529.00 | F176: € 1,579.00 | H176: € 1,329.00 | J176: 62.86 | K176: 3 | L176: 12.44 | M176: € 1,329.00 | N176: € 1,382.16 | O176: € 1,379.00 | Q176: € 50.00 | R176: € 50.00 | T176: Preis passt | W176: € 1,379.00 | X176: 0 | Y176: € 1,379.00 | Z176: 1379 | AA176: richtig
A177: 521 | B177: € 1,259.00 | C177: =B177+40 -> € 1,299.00 | D177: =C177+40 -> € 1,339.00 | E177: € 1,379.00 | F177: € 1,419.00 | H177: € 1,209.00 | J177: 48.30 | K177: 2 + AR | L177: 9.59 | M177: € 1,209.00 | N177: € 1,257.36 | O177: € 1,249.00 | Q177: € 40.00 | R177: € 40.00 | T177: Preis passt | W177: € 1,259.00 | X177: 0 | Y177: € 1,259.00 | Z177: 1259 | AA177: richtig
A178: 522 | B178: € 1,259.00 | C178: =B178+40 -> € 1,299.00 | D178: =C178+40 -> € 1,339.00 | E178: € 1,379.00 | F178: € 1,419.00 | H178: € 1,209.00 | J178: 47.66 | K178: 2 + AR | L178: 9.59 | M178: € 1,209.00 | N178: € 1,257.36 | O178: € 1,249.00 | Q178: € 40.00 | R178: € 40.00 | T178: Preis passt | W178: € 1,259.00 | X178: 0 | Y178: € 1,259.00 | Z178: 1259 | AA178: richtig
A179: 523 | B179: € 1,259.00 | C179: =B179+40 -> € 1,299.00 | D179: =C179+40 -> € 1,339.00 | E179: € 1,379.00 | F179: € 1,419.00 | H179: € 1,209.00 | J179: 48.16 | K179: 2 + AR | L179: 9.59 | M179: € 1,209.00 | N179: € 1,257.36 | O179: € 1,249.00 | Q179: € 40.00 | R179: € 40.00 | T179: Preis passt | W179: € 1,259.00 | X179: 0 | Y179: € 1,259.00 | Z179: 1259 | AA179: richtig
A180: 524 | B180: € 1,259.00 | C180: =B180+40 -> € 1,299.00 | D180: =C180+40 -> € 1,339.00 | E180: € 1,379.00 | F180: € 1,419.00 | H180: € 1,209.00 | J180: 48.18 | K180: 2 + AR | L180: 9.59 | M180: € 1,209.00 | N180: € 1,257.36 | O180: € 1,249.00 | Q180: € 40.00 | R180: € 40.00 | T180: Preis passt | W180: € 1,259.00 | X180: 0 | Y180: € 1,259.00 | Z180: 1259 | AA180: richtig
A181: 525 | B181: € 1,259.00 | C181: =B181+40 -> € 1,299.00 | D181: =C181+40 -> € 1,339.00 | E181: € 1,379.00 | F181: € 1,419.00 | H181: € 1,209.00 | J181: 48.18 | K181: 2 + AR | L181: 9.59 | M181: € 1,209.00 | N181: € 1,257.36 | O181: € 1,249.00 | Q181: € 40.00 | R181: € 40.00 | T181: Preis passt | W181: € 1,259.00 | X181: 0 | Y181: € 1,259.00 | Z181: 1259 | AA181: richtig
A182: 526 | B182: € 1,479.00 | C182: =B182+50 -> € 1,529.00 | D182: =C182+50 -> € 1,579.00 | E182: € 1,629.00 | F182: € 1,679.00 | H182: € 1,429.00 | J182: 74.22 | K182: 3 + 2x AR | L182: 12.20 | M182: € 1,429.00 | N182: € 1,486.16 | O182: € 1,479.00 | Q182: € 50.00 | R182: € 50.00 | T182: Preis passt | W182: € 1,479.00 | X182: 0 | Y182: € 1,479.00 | Z182: 1479 | AA182: richtig
A183: 527 | B183: € 1,309.00 | C183: =B183+40 -> € 1,349.00 | D183: =C183+40 -> € 1,389.00 | E183: € 1,429.00 | F183: € 1,469.00 | H183: € 1,259.00 | J183: 48.18 | K183: 2 + AR | L183: 9.58 | M183: € 1,259.00 | N183: € 1,309.36 | O183: € 1,299.00 | Q183: € 40.00 | R183: € 40.00 | T183: Preis passt | W183: € 1,309.00 | X183: 0 | Y183: € 1,309.00 | Z183: 1309 | AA183: richtig
A184: 528 | B184: € 1,539.00 | C184: =B184+50 -> € 1,589.00 | D184: =C184+50 -> € 1,639.00 | E184: € 1,689.00 | F184: € 1,739.00 | H184: € 1,479.00 | J184: 73.23 | K184: 4 + AR | L184: 13.14 | M184: € 1,479.00 | N184: € 1,538.16 | O184: € 1,529.00 | Q184: € 50.00 | R184: € 50.00 | T184: Preis passt | W184: € 1,539.00 | X184: 0 | Y184: € 1,539.00 | Z184: 1539 | AA184: richtig
N185: € 0.00 | Q185: € 0.00 | R185: € 0.00 | T185: Preis passt | W185: € 0.00 | Y185: € 0.00 | AA185: richtig
A186: 601 | B186: € 989.00 | C186: =B186+30 -> € 1,019.00 | D186: =C186+30 -> € 1,049.00 | E186: € 1,079.00 | F186: € 1,109.00 | H186: € 949.00 | J186: 33.63 | K186: 2 | L186: 0.00 | M186: € 949.00 | N186: € 986.96 | O186: =ROUNDDOWN(N186/10,0)*10-1 -> € 979.00 | Q186: € 30.00 | R186: € 30.00 | T186: Preis passt | W186: € 989.00 | X186: 0 | Y186: € 989.00 | Z186: 989 | AA186: richtig
A187: 602 | B187: € 719.00 | C187: =B187+20 -> € 739.00 | D187: =C187+20 -> € 759.00 | E187: =D187+20 -> € 779.00 | F187: =E187+20 -> € 799.00 | H187: € 669.00 | J187: 22.75 | K187: 1 | L187: 0.00 | M187: € 669.00 | N187: € 695.76 | O187: =ROUNDDOWN(N187/10,0)*10-1 -> € 689.00 | Q187: € 20.00 | R187: € 20.00 | T187: Preis passt | W187: € 719.00 | X187: 20 | Y187: € 739.00 | Z187: 719 | AA187: FALSCH
A188: 603 | B188: € 719.00 | C188: =B188+20 -> € 739.00 | D188: € 759.00 | E188: € 779.00 | F188: € 799.00 | H188: € 669.00 | J188: 23.83 | K188: 1 | L188: 0.00 | M188: € 669.00 | N188: € 695.76 | O188: € 689.00 | Q188: € 20.00 | R188: € 20.00 | T188: Preis passt | W188: € 719.00 | X188: 20 | Y188: € 739.00 | Z188: 719 | AA188: FALSCH
A189: 604 | B189: € 719.00 | C189: =B189+20 -> € 739.00 | D189: € 759.00 | E189: € 779.00 | F189: € 799.00 | H189: € 669.00 | J189: 23.72 | K189: 1 | L189: 0.00 | M189: € 669.00 | N189: € 695.76 | O189: € 689.00 | Q189: € 20.00 | R189: € 20.00 | T189: Preis passt | W189: € 719.00 | X189: 20 | Y189: € 739.00 | Z189: 719 | AA189: FALSCH
A190: 605 | B190: € 719.00 | C190: =B190+20 -> € 739.00 | D190: € 759.00 | E190: € 779.00 | F190: € 799.00 | H190: € 669.00 | J190: 23.91 | K190: 1 | L190: 0.00 | M190: € 669.00 | N190: € 695.76 | O190: € 689.00 | Q190: € 20.00 | R190: € 20.00 | T190: Preis passt | W190: € 719.00 | X190: 20 | Y190: € 739.00 | Z190: 719 | AA190: FALSCH
A191: 606 | B191: € 719.00 | C191: =B191+20 -> € 739.00 | D191: € 759.00 | E191: € 779.00 | F191: € 799.00 | H191: € 669.00 | J191: 23.72 | K191: 1 | L191: 0.00 | M191: € 669.00 | N191: € 695.76 | O191: € 689.00 | Q191: € 20.00 | R191: € 20.00 | T191: Preis passt | W191: € 719.00 | X191: 20 | Y191: € 739.00 | Z191: 719 | AA191: FALSCH
A192: 607 | B192: € 719.00 | C192: =B192+20 -> € 739.00 | D192: € 759.00 | E192: € 779.00 | F192: € 799.00 | H192: € 669.00 | J192: 23.91 | K192: 1 | L192: 0.00 | M192: € 669.00 | N192: € 695.76 | O192: € 689.00 | Q192: € 20.00 | R192: € 20.00 | T192: Preis passt | W192: € 719.00 | X192: 20 | Y192: € 739.00 | Z192: 719 | AA192: FALSCH
A193: 608 | B193: € 719.00 | C193: =B193+20 -> € 739.00 | D193: € 759.00 | E193: € 779.00 | F193: € 799.00 | H193: € 669.00 | J193: 23.72 | K193: 1 | L193: 0.00 | M193: € 669.00 | N193: € 695.76 | O193: € 689.00 | Q193: € 20.00 | R193: € 20.00 | T193: Preis passt | W193: € 719.00 | X193: 20 | Y193: € 739.00 | Z193: 719 | AA193: FALSCH
A194: 609 | B194: € 719.00 | C194: =B194+20 -> € 739.00 | D194: € 759.00 | E194: € 779.00 | F194: € 799.00 | H194: € 669.00 | J194: 23.91 | K194: 1 | L194: 0.00 | M194: € 669.00 | N194: € 695.76 | O194: € 689.00 | Q194: € 20.00 | R194: € 20.00 | T194: Preis passt | W194: € 719.00 | X194: 20 | Y194: € 739.00 | Z194: 719 | AA194: FALSCH
A195: 610 | B195: € 719.00 | C195: =B195+20 -> € 739.00 | D195: € 759.00 | E195: € 779.00 | F195: € 799.00 | H195: € 669.00 | J195: 23.72 | K195: 1 | L195: 0.00 | M195: € 669.00 | N195: € 695.76 | O195: € 689.00 | Q195: € 20.00 | R195: € 20.00 | T195: Preis passt | W195: € 719.00 | X195: 20 | Y195: € 739.00 | Z195: 719 | AA195: FALSCH
A196: 611 | B196: € 719.00 | C196: =B196+20 -> € 739.00 | D196: € 759.00 | E196: € 779.00 | F196: € 799.00 | H196: € 669.00 | J196: 23.91 | K196: 1 | L196: 0.00 | M196: € 669.00 | N196: € 695.76 | O196: € 689.00 | Q196: € 20.00 | R196: € 20.00 | T196: Preis passt | W196: € 719.00 | X196: 20 | Y196: € 739.00 | Z196: 719 | AA196: FALSCH
A197: 612 | B197: € 719.00 | C197: =B197+20 -> € 739.00 | D197: € 759.00 | E197: € 779.00 | F197: € 799.00 | H197: € 669.00 | J197: 23.72 | K197: 1 | L197: 0.00 | M197: € 669.00 | N197: € 695.76 | O197: € 689.00 | Q197: € 20.00 | R197: € 20.00 | T197: Preis passt | W197: € 719.00 | X197: 20 | Y197: € 739.00 | Z197: 719 | AA197: FALSCH
A198: 613 | B198: € 719.00 | C198: =B198+20 -> € 739.00 | D198: € 759.00 | E198: € 779.00 | F198: € 799.00 | H198: € 669.00 | J198: 23.91 | K198: 1 | L198: 0.00 | M198: € 669.00 | N198: =M198*1.04 -> € 695.76 | O198: € 689.00 | Q198: =O198-M198 -> € 20.00 | R198: =C198-B198 -> € 20.00 | T198: =IF(Q198=R198, "Preis passt", "Korrektur") -> Preis passt | W198: =B198 -> € 719.00 | X198: 20 | Y198: =W198+X198 -> € 739.00 | Z198: 719 | AA198: =IF(Y198=Z198,"richtig","FALSCH") -> FALSCH
A199: 614 | B199: € 719.00 | C199: =B199+20 -> € 739.00 | D199: € 759.00 | E199: € 779.00 | F199: € 799.00 | H199: € 669.00 | J199: 23.72 | K199: 1 | L199: 0.00 | M199: € 669.00 | N199: € 695.76 | O199: € 689.00 | Q199: € 20.00 | R199: € 20.00 | T199: Preis passt | W199: € 719.00 | X199: 20 | Y199: € 739.00 | Z199: 719 | AA199: FALSCH
A200: 615 | B200: € 719.00 | C200: =B200+20 -> € 739.00 | D200: € 759.00 | E200: € 779.00 | F200: € 799.00 | H200: € 669.00 | J200: 23.91 | K200: 1 | L200: 0.00 | M200: € 669.00 | N200: € 695.76 | O200: € 689.00 | Q200: € 20.00 | R200: € 20.00 | T200: Preis passt | W200: € 719.00 | X200: 20 | Y200: € 739.00 | Z200: 719 | AA200: FALSCH
A201: 616 | B201: € 719.00 | C201: =B201+20 -> € 739.00 | D201: € 759.00 | E201: € 779.00 | F201: € 799.00 | H201: € 669.00 | J201: 23.25 | K201: 1 | L201: 0.00 | M201: € 669.00 | N201: € 695.76 | O201: € 689.00 | Q201: € 20.00 | R201: € 20.00 | T201: Preis passt | W201: € 719.00 | X201: 20 | Y201: € 739.00 | Z201: 719 | AA201: FALSCH
... 15 more rows
